Workbook

Sheet PROGRAMA HLM-60_200
B2: Versión 2.2 | F2: PROGRAMA PARA CÁLCULO CON LOSA MIXTA HLM-60/220
B3: =NOW() -> 2011-02-16T11:50:03.350
C4: DATOS DE ENTRADA
D6: TIPOLOGÍA DE LOSA MIXTA | F6: 2 Ó MÁS VANOS SIN ARMADURA ADICIONAL POSITIVA | I6: RESISTENCIA AL FUEGO NORMALIZADO | P6: ALTURA DEL PAVIMENTO h3 (mm) | R6: 0
D7: SOBRECARGA ÚTIL ACTUANTE (daN/m2) | F7: 1000 | P7: =IF(R7="VER RANGO DE VALORES","RANGO DE VALORES","----") -> ---- | Q7: =IF(R7="VER RANGO DE VALORES","MÍN=0 mm MÁX=50 mm","----") -> ---- | R7: =IF(R6<0,"VER RANGO DE VALORES",IF(R6>50,"VER RANGO DE VALORES","----")) -> ----
D8: SOBRECARGA DE USO + CARGAS MUERTAS + TABIQUERÍA | P8: RESISTENCIA AL FUEGO NORMALIZADO NECESARIA | R8: R30
D9: =IF(F9="VER RANGO DE VALORES","RANGO DE VALORES","----") -> ---- | E9: =IF(F9="VER RANGO DE VALORES","MÍN:100 daN/m2 MÁX:4.000 daN/m2","----") -> ---- | F9: =IF(F7<100,"VER RANGO DE VALORES",IF(F7>4000,"VER RANGO DE VALORES","----")) -> ---- | P9: SEPARACIÓN DE LA ARMADURA ADICIONAL (mm) | R9: 220
D11: MATERIALES
D12: COEFICIENTE DE SEGURIDAD DEL ACERO ( γs) | F12: 1.15 | I12: GEOMETRÍA DE LA LOSA | O12: RESULTADOS
D13: COEFICIENTE DE SEGURIDAD DEL HORMIGÓN (γc) | F13: 1.5 | I13: LUZ (m) | K13: 1.4 | V13: =IF(P15="MALLA ANTIFISURACIÓN (mm)",IF(R14=HOJA_RESULTADOS!$K$3,HOJA_RESULTADOS!$M$3,IF(R14=HOJA_RESULTADOS!$K$4,HOJA_RESULTADOS!$M$4))) -> FALSE
D14: TIPO DE ACERO DE LA PLACA NERVADA | F14: S250GD | I14: =IF(K13<0.5,"RANGO DE VALORES",IF(K13>5,"RANGO DE VALORES","----")) -> ---- | J14: =IF(K13<0.5,"MÍN:0,5 m MÁX:5,0 m",IF(K13>5,"MÍN:0,5 m MÁX:5,0 m","----")) -> ---- | K14: =IF(K13<0.5,"VER RANGO DE VALORES",IF(K13>5,"VER RANGO DE VALORES","----")) -> ---- | P14: ¿COLOCACIÓN DE PUNTAL INTERMEDIO? | R14: =IF($F$6="1 VANO SIN ARMADURA ADICIONAL POSITIVA",HOJA_RESULTADOS!$I$17,IF($F$6="2 Ó MÁS VANOS SIN ARMADURA ADICIONAL POSITIVA",W19)) -> NO
D15: RESISTENCIA CARACTERÍSTICA DEL HORMIGÓN A 20ºC (más común: 25 N/mm2) | F15: 25 | I15: ESPESOR DE LA PLACA NERVADA (mm) | K15: 0.8 | P15: =IF(F6="1 VANO SIN ARMADURA ADICIONAL POSITIVA","MALLA ANTIFISURACIÓN (mm)",IF(F6="2 Ó MÁS VANOS SIN ARMADURA ADICIONAL POSITIVA","MALLA DE ARMADURA NEGATIVA (mm)")) -> MALLA DE ARMADURA NEGATIVA (mm) | R15: =IF(P15="MALLA ANTIFISURACIÓN (mm)",V13,IF(P15="MALLA DE ARMADURA NEGATIVA (mm)",V15)) -> Datos de Entrada | V15: =IF(P15="MALLA DE ARMADURA NEGATIVA (mm)","Datos de Entrada") -> Datos de Entrada
D16: LÍMITE ELÁSTICO DEL ACERO CORRUGADO A 20ºC (N/mm2) | F16: 500 | I16: ALTURA DE LA LOSA DE HORMIGÓN H (cm) | K16: 8 | P16: SOBRECARGA ÚTIL RESISTENTE (daN/m2) | R16: =IF(P15="MALLA ANTIFISURACIÓN (mm)",V17,IF(P15="MALLA DE ARMADURA NEGATIVA (mm)",MAX(U19:V19))) -> 2909.11576
D17: TIPO DE CEMENTO (valor más común: 2) | F17: 2 | P17: ¿SOLUCIÓN VÁLIDA? | R17: =IF(F6="1 VANO SIN ARMADURA ADICIONAL POSITIVA",V22,IF(F6="2 Ó MÁS VANOS SIN ARMADURA ADICIONAL POSITIVA",V23)) -> SI | V17: =IF(F9="----",HOJA_RESULTADOS!$K$17," -- ") -> 2615 | W17: =IF(F9="----",'1_vano_sin_armadura_adicional'!$E$216," -- ") -> SI
D18: HUMEDAD RELATIVA (valor más común 50%) | F18: 50 | I18: MALLA DE ARMADURA DE NEGATIVOS
I19: =IF(F6="1 VANO SIN ARMADURA ADICIONAL POSITIVA","NO RELLENAR ESTAS CUADRÍCULAS EN ESTA SOLUCIÓN DE LOSA","ELEGIR MALLA DE LA OPCIÓN SOMBREADA") -> ELEGIR MALLA DE LA OPCIÓN SOMBREADA | P19: RESISTENCIA AL FUEGO NORMALIZADO | U19: =IF(Q29=TRUE,P29,IF(Q30=TRUE,P30,IF(Q31=TRUE,P31,IF(Q32=TRUE,P32,IF(Q33=TRUE,P33,IF(Q34=TRUE,P34,IF(Q35=TRUE,P35,IF(Q36=TRUE,P36,IF(Q37=TRUE,P37,IF(Q38=TRUE,P38,IF(Q39=TRUE,P39,IF(Q40=TRUE,P40,IF(Q41=TRUE,P41,IF(Q42=TRUE,P42,IF(Q43=TRUE,P43,IF(Q44=TRUE,P44,IF(Q45=TRUE,P45,IF(Q46=TRUE,P46,IF(Q47=TRUE,P47,IF(Q48=TRUE,P48,IF(Q49=TRUE,P49,IF(Q50=TRUE,P50,IF(Q51=TRUE,P51,IF(Q52=TRUE,P52,IF(Q53=TRUE,P53,IF(Q54=TRUE,P54,IF(Q55=TRUE,P55,IF(Q56=TRUE,P56,IF(Q57=TRUE,P57,IF(Q58=TRUE,P58,IF(Q59=TRUE,P59,IF(Q60=TRUE,P60,IF(Q61=TRUE,P61,IF(Q62=TRUE,P62,IF(Q67=TRUE,P67,IF(Q68=TRUE,P68,IF(Q69=TRUE,P69,IF(Q70=TRUE,P70,IF(Q71=TRUE,P71,IF(Q72=TRUE,P72)))))))))))))))))))))))))))))))))))))))) -> FALSE | V19: =IF(F9="----",'2_vanos_sin_armadura_adicional'!C270," -- ") -> 2909.11576 | W19: =IF(F9="----",'2_vanos_sin_armadura_adicional'!$B$299," -- ") -> NO | AA19: =ISTEXT(AA20) -> FALSE | AB19: =ISTEXT(AB20) -> FALSE
I20: MALLA DE ARMADURA DE NEGATIVOS | K20: =IF(P15="MALLA ANTIFISURACIÓN (mm)","NO",IF(P15="MALLA DE ARMADURA NEGATIVA (mm)","SI")) -> SI | P20: ¿SE CUMPLE EL CRITERIO DE AISLAMIENTO TÉRMICO? | R20: =IF(F6="1 VANO SIN ARMADURA ADICIONAL POSITIVA",V28,IF(F6="2 Ó MÁS VANOS SIN ARMADURA ADICIONAL POSITIVA",V30)) -> SI | X20: 4 | Y20: =IF(U19="FALSO","",IF(K16=4,IF(K15=1.2,IF(K13=1.4,"150 x 150 x 5",IF(K16=4,IF(K15=1.2,IF(K13=1.8,"150 x 150 x 5",IF(K16=4,IF(K15=1.2,IF(K13=2,"150 x 150 x 5",IF(K16=4,IF(K15=1.2,IF(K13=2.2,"150 x 150 x 5",IF(K16=4,IF(K15=1.2,IF(K13=2.4,"150 x 150 x 5",IF(K16=4,IF(K15=1.2,IF(K13=2.6,"150 x 150 x 5",IF(K16=4,IF(K15=1.2,IF(K13=2.8,"150 x 150 x 5")))))))))))))))))))))) -> FALSE | Z20: =ISTEXT(Y20) -> FALSE | AA20: =IF(U19="FALSO","",IF(K16=4,IF(K15=1,IF(K13=1.6,"150 x 150 x 8")))) -> FALSE | AB20: =IF(U19="FALSO","",IF(K16=4,IF(K15=1.2,IF(K13=1.6,"150 x 150 x 5")))) -> FALSE
K21: Elección de Malla | L21: Malla a Utilizar
I22: MALLA DE ARMADURA NEGATIVA (sin puntal) | K22: 200 x 200 x 8 | L22: =IF(Z20=TRUE,Y20,IF(AA19=TRUE,AA20,IF(AB19=TRUE,AB20,IF(Z22=TRUE,Y22,IF(Z23=TRUE,Y23,IF(AA22=TRUE,AA23,IF(AB22=TRUE,AB23,IF(AC22=TRUE,AC23,IF(AD22=TRUE,AD23,IF(AE22=TRUE,AE23,IF(AF22=TRUE,AF23,IF(Z25=TRUE,Y25,IF(AA28=TRUE,AA25,IF(AB28=TRUE,AB25,IF(AC28=TRUE,AC25,IF(AD28=TRUE,AD25,IF(AE28=TRUE,AE25,IF(Z28=TRUE,Y28,K22)))))))))))))))))) -> 200 x 200 x 8 | P22: ¿ES NECESARIO COLOCAR ARMADURA ADICIONAL? | R22: =IF(F6="1 VANO SIN ARMADURA ADICIONAL POSITIVA",'1_vano_sin_armadura_adicional'!$B$300,IF(F6="2 Ó MÁS VANOS SIN ARMADURA ADICIONAL POSITIVA",'2_vanos_sin_armadura_adicional'!B361)) -> NO | V22: =IF(F9="----",'1_vano_sin_armadura_adicional'!$E$216," -- ") -> SI | X22: 6 | Y22: =IF(U19="FALSO","",IF(K16=6,IF(K15=1.2,IF(K13=2.8,"150 x 150 x 6",IF(K16=6,IF(K15=1.2,IF(K13=3.2,"200 x 200 x 10",IF(K16=6,IF(K15=1.2,IF(K13=3.4,"200 x 200 x 10",IF(K16=6,IF(K15=1.2,IF(K13=3.6,"200 x 200 x 10"))))))))))))) -> FALSE | Z22: =ISTEXT(Y22) -> FALSE | AA22: =ISTEXT(AA23) -> FALSE | AB22: =ISTEXT(AB23) -> FALSE | AC22: FALSE | AD22: FALSE | AE22: FALSE | AF22: FALSE
I23: MALLA DE ARMADURA NEGATIVA (con puntal) | L23: =(K23) -> 0 | P23: DIÁMETRO DE LA ARMADURA ADICIONAL (mm) | R23: =IF(F6="1 VANO SIN ARMADURA ADICIONAL POSITIVA",V34,IF(F6="2 Ó MÁS VANOS SIN ARMADURA ADICIONAL POSITIVA",'2_vanos_sin_armadura_adicional'!C370)) -> -- | V23: =IF(F9="----",'2_vanos_sin_armadura_adicional'!E272," -- ") -> SI | X23: 8 | Y23: =IF(U19="FALSO","",IF(K16=8,IF(K13=1.6,IF(K15=1,"200 x 200 x 8",IF(K16=8,IF(K13=1.6,IF(K15=1.2,"200 x 200 x 8"))))))) -> FALSE | Z23: =ISTEXT(Y23) -> FALSE | AA23: =IF(U19="FALSO","",IF(K16=8,IF(K13=1.8,IF(K15=1,"200 x 200 x 8",IF(K16=8,IF(K13=1.8,IF(K15=1.2,"200 x 200 x 8"))))))) -> FALSE | AB23: =IF(U19="FALSO","",IF(K16=8,IF(K13=2,IF(K15=1,"200 x 200 x 8",IF(K16=8,IF(K13=2,IF(K15=1.2,"200 x 200 x 8"))))))) -> FALSE | AC23: =IF(U19="FALSO","",IF(K16=8,IF(K13=2.2,IF(K15=1,"200 x 200 x 8",IF(K16=8,IF(K13=2.2,IF(K15=1.2,"200 x 200 x 8"))))))) -> FALSE | AD23: =IF(U19="FALSO","",IF(K16=8,IF(K13=2.4,IF(K15=1,"200 x 200 x 8",IF(K16=8,IF(K13=2.4,IF(K15=1.2,"200 x 200 x 8"))))))) -> FALSE | AE23: =IF(U19="FALSO","",IF(K16=8,IF(K13=2.6,IF(K15=1,"200 x 200 x 8",IF(K16=8,IF(K13=2.6,IF(K15=1.2,"200 x 200 x 8"))))))) -> FALSE | AF23: =IF(U19="FALSO","",IF(K16=8,IF(K13=2.8,IF(K15=1.2,"200 x 200 x 8")))) -> FALSE
P24: Nota: La armadura adicional para fuego se colocará a 40 mm de la zona inferior de la placa. | Z24: =ISTEXT(Y24) -> FALSE | AE24: FALSE
D25: Nota: En caso de que en la resolución de algún caso se obtenga como valor "FALSO" agradecemos lo notifiquen al Departamento Técnico de Estructuras para poder comentar dicha notificación. | X25: 10 | Y25: =IF(U19="FALSO","",IF(K16=10,IF(K15=1,IF(K13=1.6,"200 x 200 x 8",IF(K16=10,IF(K15=1,IF(K13=1.8,"200 x 200 x 8"))))))) -> FALSE | Z25: =ISTEXT(Y25) -> FALSE | AA25: =IF(U19="FALSO","",IF(K16=10,IF(K13=1.8,IF(K15=1.2,"200 x 200 x 8")))) -> FALSE | AB25: =IF(U19="FALSO","",IF(K16=10,IF(K13=2,IF(K15=1,"200 x 200 x 8",IF(K16=10,IF(K13=2,IF(K15=1.2,"200 x 200 x 8"))))))) -> FALSE | AC25: =IF(U19="FALSO","",IF(K16=10,IF(K13=2.2,IF(K15=1,"200 x 200 x 8",IF(K16=10,IF(K13=2.2,IF(K15=1.2,"200 x 200 x 8"))))))) -> FALSE | AD25: =IF(U19="FALSO","",IF(K16=10,IF(K13=2.4,IF(K15=1,"200 x 200 x 8",IF(K16=10,IF(K13=2.4,IF(K15=1.2,"200 x 200 x 8"))))))) -> FALSE | AE25: =IF(U19="FALSO","",IF(K16=10,IF(K13=2.6,IF(K15=1.2,"200 x 200 x 8")))) -> FALSE
Z26: FALSE
V28: =IF(R7="----",'1_vano_sin_armadura_adicional'!$B$274," -- ") -> SI | W28: 1 VANO SIN | X28: 12 | Y28: =IF(U19="FALSO","",IF(K16=12,IF(K15=1.2,IF(K13=1.8,"150 x 150 x 8",IF(K16=12,IF(K15=1.2,IF(K13=2,"150 x 150 x 8",IF(K16=12,IF(K15=1.2,IF(K13=2.2,"150 x 150 x 8",IF(K16=12,IF(K15=1.2,IF(K13=2.4,"150 x 150 x 8"))))))))))))) -> FALSE | Z28: =ISTEXT(Y28) -> FALSE | AA28: =ISTEXT(AA25) -> FALSE | AB28: =ISTEXT(AB25) -> FALSE | AC28: FALSE | AD28: FALSE | AE28: =ISTEXT(AE25) -> FALSE
L29: =IF(K16=4,IF(K15=1.2,IF(K13=1.4,"150 X 150 x 5"))) -> FALSE | P29: =IF(K13=1.4,IF(K15=1.2,IF(K16=4,IF(L29="150 x 150 x 5",V17)))) -> FALSE | Q29: =ISNUMBER(P29) -> FALSE
I30: =IF(R14="NO","MALLA DE ARMADURA NEGATIVA (sin puntal)") -> MALLA DE ARMADURA NEGATIVA (sin puntal) | L30: =IF(K16=4,IF(K15=1.2,IF(K13=1.8,"150 X 150 x 5"))) -> FALSE | P30: =IF(K13=1.8,IF(K15=1.2,IF(K16=4,IF(L30="150 x 150 x 5",V17)))) -> FALSE | Q30: =ISNUMBER(P30) -> FALSE | V30: =IF(R7="----",'2_vanos_sin_armadura_adicional'!$B$330," -- ") -> SI | W30: 2 VANOS SIN
L31: =IF(K16=4,IF(K15=1.2,IF(K13=2,"150 X 150 x 5"))) -> FALSE | P31: =IF(K13=2,IF(K15=1.2,IF(K16=4,IF(L31="150 x 150 x 5",V17)))) -> FALSE | Q31: FALSE
I32: =IF(R14="SI","MALLA DE ARMADURA NEGATIVA (con puntal)") -> FALSE | L32: =IF(K16=4,IF(K15=1.2,IF(K13=2.2,"150 X 150 x 5"))) -> FALSE | P32: =IF(K13=2.2,IF(K15=1.2,IF(K16=4,IF(L32="150 x 150 x 5",V17)))) -> FALSE | Q32: FALSE
L33: =IF(K16=4,IF(K15=1.2,IF(K13=2.4,"150 X 150 x 5"))) -> FALSE | P33: =IF(K13=2.4,IF(K15=1.2,IF(K16=4,IF(L33="150 x 150 x 5",V17)))) -> FALSE | Q33: FALSE
L34: =IF(K16=4,IF(K15=1.2,IF(K13=2.6,"150 X 150 x 5"))) -> FALSE | P34: =IF(K13=2.6,IF(K15=1.2,IF(K16=4,IF(L34="150 x 150 x 5",V17)))) -> FALSE | Q34: FALSE | V34: =IF('1_vano_sin_armadura_adicional'!$G$47='1_vano_sin_armadura_adicional'!$E$47,"--",'1_vano_sin_armadura_adicional'!$C$305) -> -- | W34: 1 vano sin
L35: =IF(K16=4,IF(K15=1.2,IF(K13=2.8,"150 X 150 x 5"))) -> FALSE | P35: =IF(K13=2.8,IF(K15=1.2,IF(K16=4,IF(L35="150 x 150 x 5",V17)))) -> FALSE | Q35: FALSE
L36: =IF(K16=6,IF(K15=1.2,IF(K13=2.8,"150 X 150 x 6"))) -> FALSE | P36: =IF(K13=2.8,IF(K15=1.2,IF(K16=6,IF(L36="150 x 150 x 6",V17)))) -> FALSE | Q36: FALSE | V36: =IF('2_vanos_sin_armadura_adicional'!E47='2_vanos_sin_armadura_adicional'!G47,"--",'2_vanos_sin_armadura_adicional'!$C$370) -> -- | W36: 2 vanos sin
L37: =IF(K16=6,IF(K15=1.2,IF(K13=3.2,"200 X 200 x 10"))) -> FALSE | P37: =IF(K13=3.2,IF(K15=1.2,IF(K16=6,IF(L37="200 x 200 x 10",V17)))) -> FALSE | Q37: FALSE
L38: =IF(K16=6,IF(K15=1.2,IF(K13=3.4,"200 X 200 x 10"))) -> FALSE | P38: =IF(K13=3.4,IF(K15=1.2,IF(K16=6,IF(L38="200 x 200 x 10",V17)))) -> FALSE | Q38: FALSE
G39: 0.7 | L39: =IF(K16=6,IF(K15=1.2,IF(K13=3.6,"200 X 200 x 10"))) -> FALSE | P39: =IF(K13=3.6,IF(K15=1.2,IF(K16=6,IF(L39="200 x 200 x 10",V17)))) -> FALSE | Q39: FALSE
G40: 0.8 | L40: =IF(K16=8,IF(K15=1,IF(K13=1.6,"200 X 200 x 8"))) -> FALSE | P40: =IF(K13=1.6,IF(K15=1,IF(K16=8,IF(L40="200 x 200 x 8",V17)))) -> FALSE | Q40: FALSE
G41: 1 | L41: =IF(K16=8,IF(K15=1.2,IF(K13=1.6,"200 X 200 x 8"))) -> FALSE | P41: =IF(K13=1.6,IF(K15=1.2,IF(K16=8,IF(L41="200 x 200 x 8",V17)))) -> FALSE | Q41: FALSE
G42: 1.2 | L42: =IF(K16=8,IF(K15=1,IF(K13=1.8,"200 X 200 x 8"))) -> FALSE | P42: =IF(K13=1.8,IF(K15=1,IF(K16=8,IF(L42="200 x 200 x 8",V17)))) -> FALSE | Q42: FALSE
L43: =IF(K16=8,IF(K15=1.2,IF(K13=1.8,"200 X 200 x 8"))) -> FALSE | P43: =IF(K13=1.8,IF(K15=1.2,IF(K16=8,IF(L43="200 x 200 x 8",V17)))) -> FALSE | Q43: FALSE
L44: =IF(K16=8,IF(K15=1,IF(K13=2,"200 X 200 x 8"))) -> FALSE | P44: =IF(K13=2,IF(K15=1,IF(K16=8,IF(L44="200 x 200 x 8",V17)))) -> FALSE | Q44: FALSE
L45: =IF(K16=8,IF(K15=1.2,IF(K13=2,"200 X 200 x 8"))) -> FALSE | P45: =IF(K13=2,IF(K15=1.2,IF(K16=8,IF(L45="200 x 200 x 8",V17)))) -> FALSE | Q45: FALSE
L46: =IF(K16=8,IF(K15=1,IF(K13=2.2,"200 X 200 x 8"))) -> FALSE | P46: =IF(K13=2.2,IF(K15=1,IF(K16=8,IF(L46="200 x 200 x 8",V17)))) -> FALSE | Q46: FALSE
L47: =IF(K16=8,IF(K15=1.2,IF(K13=2.2,"200 X 200 x 8"))) -> FALSE | P47: =IF(K13=2.2,IF(K15=1.2,IF(K16=8,IF(L47="200 x 200 x 8",V17)))) -> FALSE | Q47: FALSE
L48: =IF(K16=8,IF(K15=1,IF(K13=2.4,"200 X 200 x 8"))) -> FALSE | P48: =IF(K13=2.4,IF(K15=1,IF(K16=8,IF(L48="200 x 200 x 8",V17)))) -> FALSE | Q48: FALSE
L49: =IF(K16=8,IF(K15=1.2,IF(K13=2.4,"200 X 200 x 8"))) -> FALSE | P49: =IF(K13=2.4,IF(K15=1.2,IF(K16=8,IF(L49="200 x 200 x 8",V17)))) -> FALSE | Q49: FALSE
L50: =IF(K16=8,IF(K15=1,IF(K13=2.6,"200 X 200 x 8"))) -> FALSE | P50: =IF(K13=2.6,IF(K15=1,IF(K16=8,IF(L50="200 x 200 x 8",V17)))) -> FALSE | Q50: FALSE
L51: =IF(K16=8,IF(K15=1.2,IF(K13=2.6,"200 X 200 x 8"))) -> FALSE | P51: =IF(K13=2.6,IF(K15=1.2,IF(K16=8,IF(L51="200 x 200 x 8",V17)))) -> FALSE | Q51: FALSE
L52: =IF(K16=8,IF(K15=1.2,IF(K13=2.8,"200 X 200 x 8"))) -> FALSE | P52: =IF(K13=2.8,IF(K15=1.2,IF(K16=8,IF(L52="200 x 200 x 8",V17)))) -> FALSE | Q52: FALSE
L53: =IF(K16=10,IF(K15=1,IF(K13=1.6,"200 X 200 x 8"))) -> FALSE | P53: =IF(K13=1.6,IF(K15=1,IF(K16=10,IF(L53="200 x 200 x 8",V17)))) -> FALSE | Q53: FALSE
L54: =IF(K16=10,IF(K15=1,IF(K13=1.8,"200 X 200 x 8"))) -> FALSE | P54: =IF(K13=1.8,IF(K15=1,IF(K16=10,IF(L54="200 x 200 x 8",V17)))) -> FALSE | Q54: FALSE
L55: =IF(K16=10,IF(K15=1.2,IF(K13=1.8,"200 X 200 x 8"))) -> FALSE | P55: =IF(K13=1.8,IF(K15=1.2,IF(K16=10,IF(L55="200 x 200 x 8",V17)))) -> FALSE | Q55: FALSE
L56: =IF(K16=10,IF(K15=1,IF(K13=2,"200 x 200 x 8"))) -> FALSE | P56: =IF(K13=2,IF(K15=1,IF(K16=10,IF(L56="200 x 200 x 8",V17)))) -> FALSE | Q56: FALSE
L57: =IF(K16=10,IF(K15=1.2,IF(K13=2,"200 x 200 x 8"))) -> FALSE | P57: =IF(K13=2,IF(K15=1.2,IF(K16=10,IF(L57="200 x 200 x 8",V17)))) -> FALSE | Q57: FALSE
L58: =IF(K16=10,IF(K15=1,IF(K13=2.2,"200 x 200 x 8"))) -> FALSE | P58: =IF(K13=2.2,IF(K15=1,IF(K16=10,IF(L58="200 x 200 x 8",V17)))) -> FALSE | Q58: FALSE
L59: =IF(K16=10,IF(K15=1.2,IF(K13=2.2,"200 x 200 x 8"))) -> FALSE | P59: =IF(K13=2.2,IF(K15=1.2,IF(K16=10,IF(L59="200 x 200 x 8",V17)))) -> FALSE | Q59: FALSE
L60: =IF(K16=10,IF(K15=1,IF(K13=2.4,"200 x 200 x 8"))) -> FALSE | P60: =IF(K13=2.4,IF(K15=1,IF(K16=10,IF(L60="200 x 200 x 8",V17)))) -> FALSE | Q60: FALSE
L61: =IF(K16=10,IF(K15=1.2,IF(K13=2.4,"200 x 200 x 8"))) -> FALSE | P61: =IF(K13=2.4,IF(K15=1.2,IF(K16=10,IF(L61="200 x 200 x 8",V17)))) -> FALSE | Q61: FALSE
L62: =IF(K16=10,IF(K15=1.2,IF(K13=2.6,"200 x 200 x 8"))) -> FALSE | P62: =IF(K13=2.6,IF(K15=1.2,IF(K16=10,IF(L62="200 x 200 x 8",V17)))) -> FALSE | Q62: FALSE
Q63: FALSE | AA63: 0.7
Q64: FALSE | AA64: 0.8
Q65: FALSE | AA65: 1
Q66: FALSE | AA66: 1.2
L67: =IF(K16=12,IF(K15=1.2,IF(K13=1.8,"150 x 150 x 8"))) -> FALSE | P67: =IF(K13=1.8,IF(K15=1.2,IF(K16=12,IF(L67="150 x 150 x 8",V17)))) -> FALSE | Q67: FALSE
L68: =IF(K16=12,IF(K15=1.2,IF(K13=2,"150 x 150 x 8"))) -> FALSE | P68: =IF(K13=2,IF(K15=1.2,IF(K16=12,IF(L68="150 x 150 x 8",V17)))) -> FALSE | Q68: FALSE
L69: =IF(K16=12,IF(K15=1.2,IF(K13=2.2,"150 x 150 x 8"))) -> FALSE | P69: =IF(K13=2.2,IF(K15=1.2,IF(K16=12,IF(L69="150 x 150 x 8",V17)))) -> FALSE | Q69: FALSE
L70: =IF(K16=12,IF(K15=1.2,IF(K13=2.4,"150 x 150 x 8"))) -> FALSE | P70: =IF(K13=2.4,IF(K15=1.2,IF(K16=12,IF(L70="150 x 150 x 8",V17)))) -> FALSE | Q70: FALSE
L71: =IF(K16=4,IF(K15=1,IF(K13=1.6,"150 x 150 x 8"))) -> FALSE | P71: =IF(K13=1.6,IF(K15=1,IF(K16=4,IF(L71="150 x 150 x 8",V17)))) -> FALSE | Q71: FALSE
L72: =IF(K16=4,IF(K15=1.2,IF(K13=1.6,"150 x 150 x 5"))) -> FALSE | P72: =IF(K13=1.6,IF(K15=1.2,IF(K16=4,IF(L72="150 x 150 x 5",V17)))) -> FALSE | Q72: FALSE
AB78: H4 | AC78: H5 | AD78: H6 | AE78: H7 | AF78: H8 | AG78: H9 | AH78: H10 | AI78: H11 | AJ78: H12 | AK78: H13 | AL78: H14 | AQ78: H15 | AR78: H16
AD79: 150 x 150 x 6 | AE79: 200 x 200 x 8 | AF79: 200 x 200 x 8 | AG79: 200 x 200 x 8 | AH79: 200 x 200 x 8 | AI79: 150 x 150 x 8 | AJ79: 150 x 150 x 8 | AK79: 150 x 150 x 8 | AL79: 150 x 150 x 8 | AQ79: 200 x 200 x 10 | AR79: 200 x 200 x 10
AC80: 200 x 200 x 8 | AD80: 200 x 200 x 8 | AE80: 150 x 150 x 8 | AF80: 150 x 150 x 8 | AG80: 150 x 150 x 8 | AH80: 150 x 150 x 8 | AI80: 200 x 200 x 10 | AJ80: 200 x 200 x 10 | AK80: 200 x 200 x 10 | AL80: 200 x 200 x 10 | AQ80: 150 x 150 x 10 | AR80: 150 x 150 x 10
AB81: 150 x 150 x 5 | AC81: 150 x 150 x 8 | AD81: 150 x 150 x 8 | AE81: 200 x 200 x 10 | AF81: 200 x 200 x 10 | AG81: 200 x 200 x 10 | AH81: 200 x 200 x 10 | AI81: 150 x 150 x 10 | AJ81: 150 x 150 x 10 | AK81: 150 x 150 x 10 | AL81: 150 x 150 x 10 | AQ81: 200 x 200 x 12 | AR81: 200 x 200 x 12
AB82: 200 x 200 x 8 | AC82: 200 x 200 x 10 | AD82: 200 x 200 x 10 | AE82: 150 x 150 x 10 | AF82: 150 x 150 x 10 | AG82: 150 x 150 x 10 | AH82: 150 x 150 x 10 | AI82: 200 x 200 x 12 | AJ82: 200 x 200 x 12 | AK82: 200 x 200 x 12 | AL82: 200 x 200 x 12 | AQ82: 150 x 150 x 12 | AR82: 150 x 150 x 12
AB83: 150 x 150 x 8 | AC83: 150 x 150 x 10 | AD83: 150 x 150 x 10 | AE83: 200 x 200 x 12 | AF83: 200 x 200 x 12 | AG83: 200 x 200 x 12 | AH83: 200 x 200 x 12 | AI83: 150 x 150 x 12 | AJ83: 150 x 150 x 12 | AK83: 150 x 150 x 12 | AL83: 150 x 150 x 12
AB84: 200 x 200 x 10 | AC84: 200 x 200 x 12 | AD84: 200 x 200 x 12 | AE84: 150 x 150 x 12 | AF84: 150 x 150 x 12 | AG84: 150 x 150 x 12 | AH84: 150 x 150 x 12
AB85: 150 x 150 x 10 | AC85: 150 x 150 x 12 | AD85: 150 x 150 x 12
AB86: 200 x 200 x 12
AB87: 150 x 150 x 12
AB89: H4 | AC89: H5 | AD89: H6 | AE89: H7 | AF89: H8 | AG89: H9 | AH89: H10 | AI89: H11 | AJ89: H12 | AK89: H13 | AL89: H14 | AQ89: H15 | AR89: H16
AB90: 150 x 150 x 8 | AC90: 150 x 150 x 8 | AD90: 200 x 200 x 10 | AE90: 200 x 200 x 10 | AF90: 150 x 150 x 10 | AG90: 150 x 150 x 10 | AH90: 150 x 150 x 10 | AI90: 200 x 200 x 12 | AJ90: 150 x 150 x 12 | AK90: 150 x 150 x 12 | AL90: 150 x 150 x 12 | AQ90: 150 x 150 x 12 | AR90: 150 x 150 x 12
AB91: 200 x 200 x 10 | AC91: 200 x 200 x 10 | AD91: 150 x 150 x 10 | AE91: 150 x 150 x 10 | AF91: 200 x 200 x 12 | AG91: 200 x 200 x 12 | AH91: 200 x 200 x 12 | AI91: 150 x 150 x 12
AB92: 150 x 150 x 10 | AC92: 150 x 150 x 10 | AD92: 200 x 200 x 12 | AE92: 200 x 200 x 12 | AF92: 150 x 150 x 12 | AG92: 150 x 150 x 12 | AH92: 150 x 150 x 12
AB93: 200 x 200 x 12 | AC93: 200 x 200 x 12 | AD93: 150 x 150 x 12 | AE93: 150 x 150 x 12
AB94: 150 x 150 x 12 | AC94: 150 x 150 x 12

Sheet HOJA_RESULTADOS (hidden)
K3: NO | M3: =IF('PROGRAMA HLM-60_200'!K16=H40,J40,IF('PROGRAMA HLM-60_200'!K16=H41,J41,IF('PROGRAMA HLM-60_200'!K16=H42,J42,IF('PROGRAMA HLM-60_200'!K16=H43,J43,IF('PROGRAMA HLM-60_200'!K16=H44,J44,IF('PROGRAMA HLM-60_200'!K16=H45,J45,IF('PROGRAMA HLM-60_200'!K16=H46,J46,IF('PROGRAMA HLM-60_200'!K16=H47,J47,IF('PROGRAMA HLM-60_200'!K16=H48,J48,IF('PROGRAMA HLM-60_200'!K16=H49,J49,IF('PROGRAMA HLM-60_200'!K16=H50,J50,IF('PROGRAMA HLM-60_200'!K16=H51,J51,IF('PROGRAMA HLM-60_200'!K16=H52,J52))))))))))))) -> 200 x 200 x 8
K4: SI | M4: =IF('PROGRAMA HLM-60_200'!K16=H65,J65,IF('PROGRAMA HLM-60_200'!K16=H66,J66,IF('PROGRAMA HLM-60_200'!K16=H67,J67,IF('PROGRAMA HLM-60_200'!K16=H68,J68,IF('PROGRAMA HLM-60_200'!K16=H69,J69,IF('PROGRAMA HLM-60_200'!K16=H70,J70,IF('PROGRAMA HLM-60_200'!K16=H71,J71,IF('PROGRAMA HLM-60_200'!K16=H72,J72,IF('PROGRAMA HLM-60_200'!K16=H73,J73,IF('PROGRAMA HLM-60_200'!K16=H74,J74,IF('PROGRAMA HLM-60_200'!K16=H75,J75,IF('PROGRAMA HLM-60_200'!K16=H76,J76,IF('PROGRAMA HLM-60_200'!K16=H77,J77))))))))))))) -> 150 x 150 x 10
C9: DATOS DE ENTRADA
G10: VALORES PREDETERMINADOS POR DEFECTO | I10: VALORES INTRODUCIDOS POR EL USUARIO
M15: RESISTENCIA A FUEGO NORMALIZADO
C16: Sobrecarga útil (sobrecarga de uso+cargas muertas+tabiquería…) (daN/m2) | D16: Tipología de Losa Mixta | E16: Luz (m) | F16: Tipo de acero de la placa nervada | G16: Espesor de la placa nervada (mm) | H16: Altura de la Losa (cm) | I16: ¿ES NECESARIO COLOCACIÓN DE PUNTALES INTERMEDIOS? | J16: Mallazo antifisuración | K16: Sobrecarga útil resistente (daN/m2) | L16: ¿Sobrecarga válida? | M16: Altura del pavimento (mm) | N16: Resistencia al fuego normalizado necesaria | O16: Criterio de aislamiento térmico | P16: ¿ES NECESARIO COLOCAR ARMADURA ADICIONAL? | Q16: Separación de armadura adicional | R16: Ø (mm)
C17: ='PROGRAMA HLM-60_200'!AE18 -> 0 | D17: 1 vano | E17: ='PROGRAMA HLM-60_200'!AE24 -> FALSE | F17: ='PROGRAMA HLM-60_200'!F14 -> S250GD | G17: ='PROGRAMA HLM-60_200'!AE28 -> FALSE | H17: ='PROGRAMA HLM-60_200'!AE30 -> 0 | I17: ='1_vano_sin_armadura_adicional'!B246 -> NO | J17: =IF(I17=K3,M3,IF(I17=K4,M4)) -> 200 x 200 x 8 | K17: ='1_vano_sin_armadura_adicional'!C214 -> 2615 | L17: ='1_vano_sin_armadura_adicional'!E216 -> SI | M17: 0 | N17: ='PROGRAMA HLM-60_200'!AE42 -> 0 | O17: ='1_vano_sin_armadura_adicional'!B274 -> SI | P17: ='1_vano_sin_armadura_adicional'!B300 -> NO | Q17: ='PROGRAMA HLM-60_200'!AE44 -> 0 | R17: =IF('1_vano_sin_armadura_adicional'!G47='1_vano_sin_armadura_adicional'!E47,"--",'1_vano_sin_armadura_adicional'!C305) -> --
D19: Datos de entrada
D21: Datos obtenidos en el cálculo
A26: S250GD | C26: 0.7 | E26: ELECCIÓN MALLAZO ANTIFISURACIÓN SIN PUNTAL
A27: S320GD | C27: 0.8 | E27: H=4 | F27: H=5 | G27: H=6 | H27: H=7 | I27: H=8 | J27: H=9 | K27: H=10 | L27: H=11 | M27: H=12 | N27: H=13 | O27: H=14 | P27: H=15 | Q27: H=16
A28: S350GD | C28: 1 | E28: SOLUCIÓN 1.4 | F28: SOLUCIÓN 1.5 | G28: SOLUCIÓN 1.6 | H28: SOLUCIÓN 1.7 | I28: SOLUCIÓN 1.8 | J28: SOLUCIÓN 1.9 | K28: SOLUCIÓN 1.10 | L28: SOLUCIÓN 1.11 | M28: SOLUCIÓN 1.12 | N28: SOLUCIÓN 1.13 | O28: SOLUCIÓN 1.14 | P28: SOLUCIÓN 1.15 | Q28: SOLUCIÓN 1.16
A29: S280GD | C29: 1.2 | E29: SOLUCIÓN 2.4 | F29: SOLUCIÓN 2.5 | G29: SOLUCIÓN 2.6 | H29: SOLUCIÓN 2.7 | I29: SOLUCIÓN 2.8 | J29: SOLUCIÓN 2.9 | K29: SOLUCIÓN 2.10 | L29: SOLUCIÓN 2.11 | M29: SOLUCIÓN 2.12 | N29: SOLUCIÓN 2.13 | O29: SOLUCIÓN 2.14 | P29: SOLUCIÓN 2.15 | Q29: SOLUCIÓN 2.16
E30: SOLUCIÓN 3.4 | F30: SOLUCIÓN 3.5 | G30: SOLUCIÓN 3.6 | H30: SOLUCIÓN 3.7 | I30: SOLUCIÓN 3.8 | J30: SOLUCIÓN 3.9 | K30: SOLUCIÓN 3.10 | L30: SOLUCIÓN 3.11 | M30: SOLUCIÓN 3.12 | N30: SOLUCIÓN 3.13 | O30: SOLUCIÓN 3.14 | P30: SOLUCIÓN 3.15 | Q30: SOLUCIÓN 3.16
E31: SOLUCIÓN 4.4 | F31: SOLUCIÓN 4.5 | G31: SOLUCIÓN 4.6 | H31: SOLUCIÓN 4.7 | I31: SOLUCIÓN 4.8 | J31: SOLUCIÓN 4.9 | K31: SOLUCIÓN 4.10 | L31: SOLUCIÓN 4.11 | M31: SOLUCIÓN 4.12 | N31: SOLUCIÓN 4.13 | O31: SOLUCIÓN 4.14 | P31: SOLUCIÓN 4.15 | Q31: SOLUCIÓN 4.16
E32: SOLUCIÓN 5.4 | F32: SOLUCIÓN 5.5 | G32: SOLUCIÓN 5.6 | H32: SOLUCIÓN 5.7 | I32: SOLUCIÓN 5.8 | J32: SOLUCIÓN 5.9 | K32: SOLUCIÓN 5.10 | L32: SOLUCIÓN 5.11 | M32: SOLUCIÓN 5.12 | N32: SOLUCIÓN 5.13 | O32: SOLUCIÓN 5.14
E33: SOLUCIÓN 6.4 | F33: SOLUCIÓN 6.5 | G33: SOLUCIÓN 6.6 | H33: SOLUCIÓN 6.7 | I33: SOLUCIÓN 6.8 | J33: SOLUCIÓN 6.9 | K33: SOLUCIÓN 6.10
E34: SOLUCIÓN 7.4 | F34: SOLUCIÓN 7.5 | G34: SOLUCIÓN 7.6
E35: SOLUCIÓN 8.4
E36: SOLUCIÓN 9.4
H39: SIN PUNTAL
H40: 4 | I40: SOLUCIÓN 1.4 | J40: =IF(I40=E28,mallazo_antifisurac_sin_puntal!D8,IF(I40=E29,mallazo_antifisurac_sin_puntal!E8,IF(I40=E30,mallazo_antifisurac_sin_puntal!F8,IF(I40=E31,mallazo_antifisurac_sin_puntal!G8,IF(I40=E32,mallazo_antifisurac_sin_puntal!H8,IF(I40=E33,mallazo_antifisurac_sin_puntal!I8,IF(I40=E34,mallazo_antifisurac_sin_puntal!J8,IF(I40=E35,mallazo_antifisurac_sin_puntal!K8,IF(I40=E36,mallazo_antifisurac_sin_puntal!L8))))))))) -> 150 x 150 x 5
H41: 5 | I41: SOLUCIÓN 1.5 | J41: =IF(I41=F28,mallazo_antifisurac_sin_puntal!D11,IF(I41=F29,mallazo_antifisurac_sin_puntal!E11,IF(I41=F30,mallazo_antifisurac_sin_puntal!F11,IF(I41=F31,mallazo_antifisurac_sin_puntal!G11,IF(I41=F32,mallazo_antifisurac_sin_puntal!H11,IF(I41=F33,mallazo_antifisurac_sin_puntal!I11,IF(I41=F34,mallazo_antifisurac_sin_puntal!J11))))))) -> 150 x 150 x 6
H42: 6 | I42: SOLUCIÓN 1.6 | J42: =IF(I42=G28,mallazo_antifisurac_sin_puntal!D14,IF(I42=G29,mallazo_antifisurac_sin_puntal!E14,IF(I42=G30,mallazo_antifisurac_sin_puntal!F14,IF(I42=G31,mallazo_antifisurac_sin_puntal!G14,IF(I42=G32,mallazo_antifisurac_sin_puntal!H14,IF(I42=G33,mallazo_antifisurac_sin_puntal!I14,IF(I42=G34,mallazo_antifisurac_sin_puntal!J14))))))) -> 150 x 150 x 6
H43: 7 | I43: SOLUCIÓN 1.7 | J43: =IF(I43=H28,mallazo_antifisurac_sin_puntal!D17,IF(I43=H29,mallazo_antifisurac_sin_puntal!E17,IF(I43=H30,mallazo_antifisurac_sin_puntal!F17,IF(I43=H31,mallazo_antifisurac_sin_puntal!G17,IF(I43=H32,mallazo_antifisurac_sin_puntal!H17,IF(I43=H33,mallazo_antifisurac_sin_puntal!I17)))))) -> 200 x 200 x 8
H44: 8 | I44: SOLUCIÓN 1.8 | J44: =IF(I44=I28,mallazo_antifisurac_sin_puntal!D20,IF(I44=I29,mallazo_antifisurac_sin_puntal!E20,IF(I44=I30,mallazo_antifisurac_sin_puntal!F20,IF(I44=I31,mallazo_antifisurac_sin_puntal!G20,IF(I44=I32,mallazo_antifisurac_sin_puntal!H20,IF(I44=I33,mallazo_antifisurac_sin_puntal!I20)))))) -> 200 x 200 x 8
H45: 9 | I45: SOLUCIÓN 1.9 | J45: =IF(I45=J28,mallazo_antifisurac_sin_puntal!D23,IF(I45=J29,mallazo_antifisurac_sin_puntal!E23,IF(I45=J30,mallazo_antifisurac_sin_puntal!F23,IF(I45=J31,mallazo_antifisurac_sin_puntal!G23,IF(I45=J32,mallazo_antifisurac_sin_puntal!H23,IF(I45=J33,mallazo_antifisurac_sin_puntal!I23)))))) -> 200 x 200 x 8
H46: 10 | I46: SOLUCIÓN 1.10 | J46: =IF(I46=K28,mallazo_antifisurac_sin_puntal!D26,IF(I46=K29,mallazo_antifisurac_sin_puntal!E26,IF(I46=K30,mallazo_antifisurac_sin_puntal!F26,IF(I46=K31,mallazo_antifisurac_sin_puntal!G26,IF(I46=K32,mallazo_antifisurac_sin_puntal!H26,IF(I46=K33,mallazo_antifisurac_sin_puntal!I26)))))) -> 200 x 200 x 8
H47: 11 | I47: SOLUCIÓN 1.11 | J47: =IF(I47=L28,mallazo_antifisurac_sin_puntal!D29,IF(I47=L29,mallazo_antifisurac_sin_puntal!E29,IF(I47=L30,mallazo_antifisurac_sin_puntal!F29,IF(I47=L31,mallazo_antifisurac_sin_puntal!G29,IF(I47=L32,mallazo_antifisurac_sin_puntal!H29))))) -> 150 x 150 x 8
H48: 12 | I48: SOLUCIÓN 1.12 | J48: =IF(I48=M28,mallazo_antifisurac_sin_puntal!D32,IF(I48=M29,mallazo_antifisurac_sin_puntal!E32,IF(I48=M30,mallazo_antifisurac_sin_puntal!F32,IF(I48=M31,mallazo_antifisurac_sin_puntal!G32,IF(I48=M32,mallazo_antifisurac_sin_puntal!H32))))) -> 150 x 150 x 8
H49: 13 | I49: SOLUCIÓN 1.13 | J49: =IF(I49=N28,mallazo_antifisurac_sin_puntal!D35,IF(I49=N29,mallazo_antifisurac_sin_puntal!E35,IF(I49=N30,mallazo_antifisurac_sin_puntal!F35,IF(I49=N31,mallazo_antifisurac_sin_puntal!G35,IF(I49=N32,mallazo_antifisurac_sin_puntal!H35))))) -> 150 x 150 x 8
H50: 14 | I50: SOLUCIÓN 1.14 | J50: =IF(I50=O28,mallazo_antifisurac_sin_puntal!D38,IF(I50=O29,mallazo_antifisurac_sin_puntal!E38,IF(I50=O30,mallazo_antifisurac_sin_puntal!F38,IF(I50=O31,mallazo_antifisurac_sin_puntal!G38,IF(I50=O32,mallazo_antifisurac_sin_puntal!H38))))) -> 150 x 150 x 8
H51: 15 | I51: SOLUCIÓN 1.15 | J51: =IF(I51=P28,mallazo_antifisurac_sin_puntal!D41,IF(I51=P29,mallazo_antifisurac_sin_puntal!E41,IF(I51=P30,mallazo_antifisurac_sin_puntal!F41,IF(I51=P31,mallazo_antifisurac_sin_puntal!G41)))) -> 200 x 200 x 10
H52: 16 | I52: SOLUCIÓN 1.16 | J52: =IF(I52=Q28,mallazo_antifisurac_sin_puntal!D44,IF(I52=Q29,mallazo_antifisurac_sin_puntal!E44,IF(I52=Q30,mallazo_antifisurac_sin_puntal!F44,IF(I52=Q31,mallazo_antifisurac_sin_puntal!G44)))) -> 200 x 200 x 10
E55: ELECCIÓN MALLAZO ANTIFISURACIÓN CON PUNTAL
E56: H=4 | F56: H=5 | G56: H=6 | H56: H=7 | I56: H=8 | J56: H=9 | K56: H=10 | L56: H=11 | M56: H=12 | N56: H=13 | O56: H=14 | P56: H=15 | Q56: H=16
E57: SOLUCIÓN 1.4 | F57: SOLUCIÓN 1.5 | G57: SOLUCIÓN 1.6 | H57: SOLUCIÓN 1.7 | I57: SOLUCIÓN 1.8 | J57: SOLUCIÓN 1.9 | K57: SOLUCIÓN 1.10 | L57: SOLUCIÓN 1.11 | M57: SOLUCIÓN 1.12 | N57: SOLUCIÓN 1.13 | O57: SOLUCIÓN 1.14 | P57: SOLUCIÓN 1.15 | Q57: SOLUCIÓN 1.16
E58: SOLUCIÓN 2.4 | F58: SOLUCIÓN 2.5 | G58: SOLUCIÓN 2.6 | H58: SOLUCIÓN 2.7 | I58: SOLUCIÓN 2.8 | J58: SOLUCIÓN 2.9 | K58: SOLUCIÓN 2.10 | L58: SOLUCIÓN 2.11
E59: SOLUCIÓN 3.4 | F59: SOLUCIÓN 3.5 | G59: SOLUCIÓN 3.6 | H59: SOLUCIÓN 3.7 | I59: SOLUCIÓN 3.8 | J59: SOLUCIÓN 3.9 | K59: SOLUCIÓN 3.10
E60: SOLUCIÓN 4.4 | F60: SOLUCIÓN 4.5 | G60: SOLUCIÓN 4.6 | H60: SOLUCIÓN 4.7
E61: SOLUCIÓN 5.4 | F61: SOLUCIÓN 5.5
H64: CON PUNTAL
H65: 4 | I65: SOLUCIÓN 1.4 | J65: =IF(I65=E57,mallazo_antifisurac_con_puntal!F14,IF(I65=E58,mallazo_antifisurac_con_puntal!G14,IF(I65=E59,mallazo_antifisurac_con_puntal!H14,IF(I65=E60,mallazo_antifisurac_con_puntal!I14,IF(I65=E61,mallazo_antifisurac_con_puntal!J14))))) -> 150 x 150 x 8
H66: 5 | I66: SOLUCIÓN 1.5 | J66: =IF(I66=F57,mallazo_antifisurac_con_puntal!F18,IF(I66=F58,mallazo_antifisurac_con_puntal!G18,IF(I66=F59,mallazo_antifisurac_con_puntal!H18,IF(I66=F60,mallazo_antifisurac_con_puntal!I18,IF(I66=F61,mallazo_antifisurac_con_puntal!J18))))) -> 150 x 150 x 8
H67: 6 | I67: SOLUCIÓN 1.6 | J67: =IF(I67=G57,mallazo_antifisurac_con_puntal!F22,IF(I67=G58,mallazo_antifisurac_con_puntal!G22,IF(I67=G59,mallazo_antifisurac_con_puntal!H22,IF(I67=G60,mallazo_antifisurac_con_puntal!I22)))) -> 200 x 200 x 10
H68: 7 | I68: SOLUCIÓN 1.7 | J68: =IF(I68=H57,mallazo_antifisurac_con_puntal!F26,IF(I68=H58,mallazo_antifisurac_con_puntal!G26,IF(I68=H59,mallazo_antifisurac_con_puntal!H26,IF(I68=H60,mallazo_antifisurac_con_puntal!I26)))) -> 200 x 200 x 10
H69: 8 | I69: SOLUCIÓN 1.8 | J69: =IF(I69=I57,mallazo_antifisurac_con_puntal!F30,IF(I69=I58,mallazo_antifisurac_con_puntal!G30,IF(I69=I59,mallazo_antifisurac_con_puntal!H30))) -> 150 x 150 x 10
H70: 9 | I70: SOLUCIÓN 1.9 | J70: =IF(I70=J57,mallazo_antifisurac_con_puntal!F34,IF(I70=J58,mallazo_antifisurac_con_puntal!G34,IF(I70=J59,mallazo_antifisurac_con_puntal!H34))) -> 150 x 150 x 10
H71: 10 | I71: SOLUCIÓN 1.10 | J71: =IF(I71=K57,mallazo_antifisurac_con_puntal!F38,IF(I71=K58,mallazo_antifisurac_con_puntal!G38,IF(I71=K59,mallazo_antifisurac_con_puntal!H38))) -> 150 x 150 x 10
H72: 11 | I72: SOLUCIÓN 1.11 | J72: =IF(I72=L57,mallazo_antifisurac_con_puntal!F42,IF(I72=L58,mallazo_antifisurac_con_puntal!G42)) -> 200 x 200 x 12
H73: 12 | I73: SOLUCIÓN 1.12 | J73: =mallazo_antifisurac_con_puntal!F46 -> 150 x 150 x 12
H74: 13 | I74: SOLUCIÓN 1.13 | J74: =mallazo_antifisurac_con_puntal!F50 -> 150 x 150 x 12
H75: 14 | I75: SOLUCIÓN 1.14 | J75: =mallazo_antifisurac_con_puntal!F54 -> 150 x 150 x 12
H76: 15 | I76: SOLUCIÓN 1.15 | J76: =mallazo_antifisurac_con_puntal!F58 -> 150 x 150 x 12
H77: 16 | I77: SOLUCIÓN 1.16 | J77: =mallazo_antifisurac_con_puntal!F62 -> 150 x 150 x 12
C82: Limitación de sobrecarga útil actuante
C84: Mínimo | D84: Máximo
C86: 100 | D86: 4000

Sheet 1_vano_sin_armadura_adicional (hidden)
B2: Datos fijos
B4: msc | C4: 101.36 | D4: N/mm2
B5: ksc | C5: 0.045 | D5: N/mm2
B6: γvs | C6: 1.25
B7: tpp | C7: 60 | D7: días
B8: bo | C8: 6 | D8: cm
B9: b | C9: 22 | D9: cm
B10: b1 | C10: 13 | D10: cm
B11: Es | C11: =2.1*10^6 -> 2100000 | D11: kg/cm2
B12: Ac_v | C12: 0 | D12: cm2
B13: fmv | C13: 0.125
B14: ffv | C14: 0.01302
B15: te | C15: 7 | D15: días
B16: tinf | C16: 10000 | D16: días
B17: d | C17: =C104-2 -> 12
B18: ρ2 | C18: 0
B19: fr | C19: 0.125
B20: Tpp | C20: 7 | D20: días
B21: l1 | C21: 127
B22: l2 | C22: 60
B23: l3 | C23: 93
B24: h2 | C24: 60
B25: k | C25: 0.85
B26: u1 | C26: 50 | D26: mm
B27: u2 | C27: 50 | D27: mm
B28: u3 | C28: 40 | D28: mm
B35: Entrada de datos variables
B37: Nombre variable | D37: Unidades | E37: Valor | F37: Abreviatura
B38: Luz de cálculo | D38: m | E38: ='PROGRAMA HLM-60_200'!K13 -> 1.4 | F38: L
B39: Espesor de la placa nervada | D39: mm | E39: ='PROGRAMA HLM-60_200'!K15 -> 0.8 | F39: ec
B40: Altura de la losa de hormigón | D40: cm | E40: ='PROGRAMA HLM-60_200'!K16 -> 8 | F40: H | G40: 4
B41: Sobrecarga útil (suma de uso más cargas muertas, más tabiquería…) | D41: daN/m2 | E41: ='PROGRAMA HLM-60_200'!F7 -> 1000 | F41: Quso | G41: Recordar que no es la de uso exactamente, sino la suma de la de uso mas tabiquería más cargas muertas…
B42: Tipo de cemento (1, 2 ó 3) | E42: ='PROGRAMA HLM-60_200'!F17 -> 2 | G42: Tipo 2: Endurecimiento normal
B43: Resistencia característica del hormigón | D43: kg/cm2 | E43: ='PROGRAMA HLM-60_200'!F15*10 -> 250 | F43: fck
B44: HUMEDAD RELATIVA( 50% Ó 80%) | E44: ='PROGRAMA HLM-60_200'!F18 -> 50
B46: Calidad de la placa de acero | D46: kg/cm2 | E46: =IF(HOJA_RESULTADOS!$F$17=HOJA_RESULTADOS!$A$26,2500,IF(HOJA_RESULTADOS!$F$17=HOJA_RESULTADOS!$A$27,3200,IF(HOJA_RESULTADOS!$F$17=HOJA_RESULTADOS!$A$28,3500,IF(HOJA_RESULTADOS!$F$17=HOJA_RESULTADOS!A29,2800)))) -> 2500 | F46: σ
B47: Resistencia al fuego requerida | E47: ='PROGRAMA HLM-60_200'!R8 -> R30 | F47: RF | G47: R30
B48: Altura del pavimento | D48: mm | E48: ='PROGRAMA HLM-60_200'!R6 -> 0 | F48: h3
B49: Resistencia característica del hormigón a 20ºC | E49: =$E$43/10 -> 25 | F49: fc_20ºC
B50: Resistencia del acero a 20ºC | E50: ='PROGRAMA HLM-60_200'!F16 -> 500 | F50: fsy_20ºC
B55: CRITERIO DE FLEXIÓN
B59: yinf | C59: =IF(E39=0.7,F60,IF(E39=0.8,F61,IF(E39=1,F62,IF(E39=1.2,F63)))) -> 33.47 | E59: ec | F59: yinf
E60: 0.7 | F60: 32.79
E61: 0.8 | F61: 33.47
E62: 1 | F62: 33.55
E63: 1.2 | F63: 33.64
B65: dp | C65: =E40*10+60-C59 -> 106.53
B67: Ap | C67: =IF(E39=0.7,E68,IF(E39=0.8,E69,IF(E39=1,E70,IF(E39=1.2,E71)))) -> 1000 | E67: Ap | F67: ec
E68: 875 | F68: 0.7
B69: Vd(L) | C69: =((967*C65)/C6)*(((4*C67*C4)/(E38*1000*967))+C5)*(1/9.8) -> 2896.876812 | E69: 1000 | F69: 0.8
E70: 1250 | F70: 1
E71: 1500 | F71: 1.2
B73: Qt(L) | C73: =2*C69*1000*1000/(E38*1000*967) -> 4279.623005
B75: Qpp | C75: =IF(E40=4,E76,IF(E40=5,E77,IF(E40=6,E78,IF(E40=7,E79,IF(E40=8,E80,IF(E40=9,E81,IF(E40=10,E82,IF(E40=11,E83,IF(E40=12,E84,IF(E40=13,E85,IF(E40=14,E86,IF(E40=15,E87,IF(E40=16,E88))))))))))))) -> 265 | E75: Qpp | F75: H
B76: Qsc(L) | C76: =ROUND((C73-1.35*C75)/1.5,0) -> 2615 | E76: 165 | F76: 4
B77: Qsc(L) | C77: =IF(C76>0,C76,0) -> 2615 | E77: 190 | F77: 5
E78: 215 | F78: 6
E79: 240 | F79: 7
E80: 265 | F80: 8
E81: 299 | F81: 9
E82: 315 | F82: 10
E83: 340 | F83: 11
E84: 365 | F84: 12
E85: 390 | F85: 13
E86: 415 | F86: 14
E87: 440 | F87: 15
E88: 465 | F88: 16
B91: CRITERIO DE DEFORMACIÓN
B93: tpp | C93: 60
B94: s | C94: =IF(E42=1,E95,IF(E42=2,E96,IF(E42=3,E97))) -> 0.25 | E94: s | F94: Tipo cemento
B95: β | C95: =EXP(C94*(1-(28/C93)^(1/2))) -> 1.082439713 | E95: 0.2 | F95: 1
E96: 0.25 | F96: 2
E97: 0.38 | F97: 3
B100: fc_flex | C100: =0.8*(E43)^(2/3) -> 31.74802104
B102: fc_flex_pp | C102: =C100*C95 -> 34.36531879
B104: h | C104: =E40+6 -> 14
B105: yT | C105: =((C8*((C104-E40)^2)/2)+C9*E40*(C104-(E40/2)))/(C8*(C104-E40)+C9*E40) -> 8.811320755
B106: Ihor | C106: =(1/12)*C8*(C104-E40)^3+C8*(C104-E40)*(C105-((C104-E40)/2))^2+(1/12)*C9*E40^3+C9*E40*(C104-(E40/2)-C105)^2 -> 2511.119497
B107: Ah | C107: =(C9*E40+((C10+C8)/2)*(C104-E40))/100^2 -> 0.0233 | E107: At_v | F107: ec
B108: Ahor | C108: =C107*100^2 -> 233 | E108: 2.01 | F108: 0.7
B109: At_v | C109: =IF(E39=0.7,E108,IF(E39=0.8,E109,IF(E39=1,E110,IF(E39=1.2,E111)))) -> 2.3 | E109: 2.3 | F109: 0.8
B110: Eci_pp | C110: =19000*(E43*C95)^(1/2) -> 312554.2899 | E110: 2.87 | F110: 1
B111: npp | C111: =C11/C110 -> 6.718832753 | E111: 3.45 | F111: 1.2
B112: d´ | C112: =IF(E39=0.7,E114,IF(E39=0.8,E115,IF(E39=1,E116,IF(E39=1.2,E117)))) -> 3.3395
B113: yhv_pp | C113: =(C108*C105+C111*C109*C112+C111*C12*(C104-C112))/(C108+C111*C109+C111*C12) -> 8.470984094 | E113: d´ | F113: ec
B114: Ihv_pp | C114: =C106+C108*(C113-C105)^2+C111*C109*(C113-C112)^2+C111*C12*(C104-C113-C112)^2 -> 2945.026357 | E114: 3.3399 | F114: 0.7
E115: 3.3395 | F115: 0.8
B116: Whv_pp | C116: =C114/C113 -> 347.6604753 | E116: 3.3378 | F116: 1
E117: 3.3377 | F117: 1.2
B120: Mfv | C120: =C102*C116 -> 11947.46307
B123: Mv | C123: =(C13*(C75+C77)*C9*(E38*100)^2)/10000 -> 15523.2
B125: ξv | C125: =1-0.5*(C120/C123)^2 -> 0.703817843
B128: FLECHA DE SOBRECARGA
B130: Ecm | C130: =44100*(E43+80)^(1/3) -> 304749.6644
B131: Phor | C131: =C9+2*E40+4.6*2+6.9*2+C8 -> 67
B132: em | C132: =2*C108*100/(C131*10) -> 69.55223881
B133: Ø | C133: =IF(E44=50,F133,IF(E44=80,F135)) -> 3.6343554 | E133: Ø50 | F133: =10.345*C132^(-0.1601)*C15^((-5.238*(10^(-8))*C132^2)+(3.158*(10^-5)*C132)-0.1905) -> 3.6343554
B134: Ete | C134: =C130/(1+C133) -> 65758.80314
B135: nte | C135: =C11/C134 -> 31.9348878 | E135: Ø80 | F135: =5.5952*C132^(-0.1058)*C15^(0.007289*LN(C132)-0.23155) -> 2.41739438
B136: yhv_te | C136: =(C108*C105+C135*C109*C112+C135*C12*(C104-C112))/(C108+C135*C109+C135*C12) -> 7.499830329
B137: Ihv_te | C137: =C106+C108*(C136-C105)^2+C135*C109*(C136-C112)^2+C135*C12*(C104-C136-C112)^2 -> 4183.183541
B139: β | C139: =EXP(C94*(1-(28/C16)^(1/2))) -> 1.267151215
B140: Eci_inf | C140: =19000*(E43*C139)^(1/2) -> 338172.1414
B142: Fsc_I | C142: =C14*(C76*C9*(E38*100)^4)/(100*100*C140*C137) -> 0.02034102125
B144: δf | C144: =E40/C17 -> 0.6666666667
B145: ξf | C145: =C144*((C9/C8)-1) -> 1.777777778
B146: ρ1 | C146: =C109/(C9*C17) -> 0.008712121212
B147: ninf | C147: =C11/C140 -> 6.20985511 | E147: SECCIÓN RECTANGULAR
B148: Tf_inf | C148: =(C144^2+2*C147*C18*(C144-(C112/C17)))/(2*(1-C144)) -> 0.6666666667 | E148: SECCIÓN T
B149: αf_inf | C149: =2*C147*(C146+C18*(C112/C17)*(C9/C8))+(C145*C144) -> 1.293387206
B150: βf_inf | C150: =C145+C147*(C146+C18)*(C9/C8) -> 1.976148149
B151: ninf*ρ1 | C151: =C147*C146 -> 0.05410101042 | D151: =IF(C151<C148,E147,IF(C151>C148,E148)) -> SECCIÓN RECTANGULAR
B153: Xfv_inf_r | C153: =(C17*C147*C146*(-1+(1+(2/(C147*C146)))^(1/2))) -> 3.351108785 | D153: Considerando ρ2=0
B154: Ifv_inf_r | C154: =C147*C109*(C17-C153)*(C17-(C153/3))+C147*C12*(C153-C112)*((C153/3)-C112) -> 1344.364142
B156: Xfv_inf_T | C156: =C17*C150*(-1+(1+(C149/C150^2)^(1/2))) -> 13.64726191
B157: Ic_inf | C157: =C9*E40*(((E40^2)/12)+(C156-(E40/2))^2)+((C8*(C156-E40)^3))/3 -> 17679.12731
B158: Ifv_inf_T | C158: =C157+C147*C109*(C17-C156)^2+C147*C12*(C156-C112)^2 -> 17717.88292
B160: Ifis_inf | C160: =IF(D151=E147,C154,IF(D151=E148,C158)) -> 1344.364142
B162: Fsc_II | C162: =C14*(C76/100)*(C9/100)*((E38*100)^4)/(C140*C160) -> 0.06329403072
B164: Flecha_SC | C164: =C125*C162+(1-C125)*C142 -> 0.05057211572
B166: FLECHA DEBIDA A RETRACCIÓN
B168: Sh | C168: =C109*(C136-C112) -> 9.568759757
B170: βf_te | C170: =C145+C135*(C146+C18)*(C9/C8) -> 2.797920027
B171: αf_te | C171: =2*C135*(C146+C18*(C112/C17))*(C9/C8)+(C145*C144) -> 3.225469683
B172: Tf_te | C172: =(C144^2+(2*C135*C18*(C144-(C112/C17))))/(2*(1-C144)) -> 0.6666666667
B173: nte*ρ1 | C173: =C135*C146 -> 0.2782206134 | D173: =IF(C173<C172,E147,IF(C173>C172,E148)) -> SECCIÓN RECTANGULAR
B175: Xfv_te_r | C175: =C17*C135*C146*(-1+(1+(2/(C135*C146)))^(1/2)) -> 6.215100744
B176: Ifv_te_r | C176: =C135*C109*(C17-C175)*(C17-(C175/3))+C135*C12*C175*((C175/3)-C112) -> 4218.556902
B178: Xfv_te_T | C178: =C17*C170*(-1+(1+(C171/C170^2))^(1/2)) -> 6.321713519
B179: Ic_te | C179: =C9*E40*(((E40^2)/12)+(C178-(E40/2))^2)+(C8*(C178-E40)^3)/3 -> 1877.914635
B180: Ifv_te_T | C180: =C179+C135*C109*(C17-C178)^2+C135*C12*(C178-C112)^2 -> 4246.166185
B181: Xfv_te | C181: =IF(D173=E147,C175,IF(D173=E148,C178)) -> 6.215100744
B182: Ifv_te | C182: =IF(D173=E147,C176,IF(D173=E148,C180)) -> 4218.556902
B183: Sfis | C183: =C109*(C104-C181-C112) -> 10.22441829
B185: εr_50 | C185: =IF(C132<150,0.6/1000,IF(C132>150,(-0.00022*C132+0.63333)/1000)) -> 0.0006
B186: εr_80 | C186: =IF(C132<150,0.33/1000,IF(C132>150,(-0.00011*C132+0.34667)/1000)) -> 0.00033
B188: εr_50 | C188: =C185*(C15-C20)/C15 -> 0
B189: εr_80 | C189: =C186*(C15-C20)/C15 -> 0
B190: εr | C190: =IF(E44=50,C188,IF(E44=80,C189)) -> 0
B192: Fret_I | C192: =(C19*C168*C190*(C11/C134)*E38^2)/C137 -> 0
B194: Fret_II | C194: =(C19*C183*C190*(C11/C134)*E38^2)/C182 -> 0
B196: Flecha _ret | C196: =C125*C194+(1-C125)*C192 -> 0
B198: FLECHA DEBIDA A PESO PROPIO
B200: Fpp_I | C200: =(C14*(C75)*C9*(100*E38)^4)/(100*100*C134*C137) -> 0.01060061011
B202: Fpp_II | C202: =(C14*(C75)*C9*(100*E38)^4)/(100*100*C134*C182) -> 0.01051172208
B204: Flecha _PP | C204: =C125*C202+(1-C125)*C200 -> 0.01053804913
B207: FLECHA TOTAL=Flecha_sc + Flecha_ret + Flecha_pp
B209: FLECHA TOTAL | D209: =C204+C196+C164 -> 0.06111016485 | E209: cm
B212: FACTOR RELACIÓN LUZ= | D212: =E38*100/D209 -> 2290.944564
F213: "Solución No Válida"
B214: Q_resultante | C214: =IF(D212>350,C77,IF(D212<350,F213)) -> 2615 | F214: SI | G214: NO
B216: ¿Q_resultante | C216: > | D216: Q"uso"? | E216: =IF(C214=F213,G214,IF(C214=E41,F214,IF(C214>E41,F214,IF(C214<E41,G214)))) -> SI
B219: CÁLCULO DE APUNTALAMIENTOS
B223: I | C223: =IF(E39=E225,F225,IF(E39=E226,F226,IF(E39=E227,F227,IF(E39=E228,F228)))) -> 62.63
B224: W | C224: =IF(E39=E225,G225,IF(E39=E226,G226,IF(E39=E227,G227,IF(E39=E228,G228)))) -> 18.71 | E224: ec | F224: Momento de Inercia I (cm4/m) | G224: Módulo resistente W (cm3/m)
B225: Qsc_flex | C225: =((E46/1.5)*(C224/100)*8)/E38^2 -> 1272.789116 | E225: 0.7 | F225: 54.79 | G225: 16.71
B226: Qsc_def | C226: =((C11*C223)/10000)*384/(5*180*E38^3) -> 2045.061224 | E226: 0.8 | F226: 62.63 | G226: 18.71
E227: 1 | F227: 78.31 | G227: 23.34
E228: 1.2 | F228: 94.01 | G228: 27.95
B231: ¿Qsc_flex | C231: < | D231: Qsc_def? | E231: =IF(C225<C226,F231,IF(C225>C226,F232)) -> SI | F231: SI
F232: NO
B234: QSC = | C234: =IF(E231=F232,B226,IF(E231=F231,B225)) -> Qsc_flex | D234: =IF(C234=B226,C226,IF(C234=B225,C225)) -> 1272.789116
B236: QSC_EUROCÓDIGO_0,7 | C236: =IF(E39=0.7,IF(E40=4,cargas_de_encofrado!$G$7,IF(E39=0.7,IF(E40=5,cargas_de_encofrado!$G$8,IF(E39=0.7,IF(E40=6,cargas_de_encofrado!$G$9,IF(E39=0.7,IF(E40=7,cargas_de_encofrado!$G$10,IF(E39=0.7,IF(E40=8,cargas_de_encofrado!$G$11,IF(E39=0.7,IF(E40=9,cargas_de_encofrado!$G$12,IF(E39=0.7,IF(E40=10,cargas_de_encofrado!$G$13,IF(E39=0.7,IF(E40=11,cargas_de_encofrado!$G$14,IF(E39=0.7,IF(E40=12,cargas_de_encofrado!$G$15,IF(E39=0.7,IF(E40=13,cargas_de_encofrado!$G$16,IF(E39=0.7,IF(E40=14,cargas_de_encofrado!$G$17,IF(E39=0.7,IF(E40=15,cargas_de_encofrado!$G$18,IF(E39=0.7,IF(E40=16,cargas_de_encofrado!$G$19)))))))))))))))))))))))))) -> FALSE
B237: QSC_EUROCÓDIGO_0,8 | C237: =IF(E39=0.8,IF(E40=4,cargas_de_encofrado!$G$20,IF(E39=0.8,IF(E40=5,cargas_de_encofrado!$G$21,IF(E39=0.8,IF(E40=6,cargas_de_encofrado!$G$22,IF(E39=0.8,IF(E40=7,cargas_de_encofrado!$G$23,IF(E39=0.8,IF(E40=8,cargas_de_encofrado!$G$24,IF(E39=0.8,IF(E40=9,cargas_de_encofrado!$G$25,IF(E39=0.8,IF(E40=10,cargas_de_encofrado!$G$26,IF(E39=0.8,IF(E40=11,cargas_de_encofrado!$G$27,IF(E39=0.8,IF(E40=12,cargas_de_encofrado!$G$28,IF(E39=0.8,IF(E40=13,cargas_de_encofrado!$G$29,IF(E39=0.8,IF(E40=14,cargas_de_encofrado!$G$30,IF(E39=0.8,IF(E40=15,cargas_de_encofrado!$G$31,IF(E39=0.8,IF(E40=16,cargas_de_encofrado!$G$32)))))))))))))))))))))))))) -> 422.25
B238: QSC_EUROCÓDIGO_1,0 | C238: =IF(E39=1,IF(E40=4,cargas_de_encofrado!$G$33,IF(E39=1,IF(E40=5,cargas_de_encofrado!$G$34,IF(E39=1,IF(E40=6,cargas_de_encofrado!$G$35,IF(E39=1,IF(E40=7,cargas_de_encofrado!$G$36,IF(E39=1,IF(E40=8,cargas_de_encofrado!$G$37,IF(E39=1,IF(E40=9,cargas_de_encofrado!$G$38,IF(E39=1,IF(E40=10,cargas_de_encofrado!$G$39,IF(E39=1,IF(E40=11,cargas_de_encofrado!$G$40,IF(E39=1,IF(E40=12,cargas_de_encofrado!$G$41,IF(E39=1,IF(E40=13,cargas_de_encofrado!$G$42,IF(E39=1,IF(E40=14,cargas_de_encofrado!$G$43,IF(E39=1,IF(E40=15,cargas_de_encofrado!$G$44,IF(E39=1,IF(E40=16,cargas_de_encofrado!$G$45)))))))))))))))))))))))))) -> FALSE
B239: QSC_EUROCÓDIGO_1,2 | C239: =IF(E39=1.2,IF(E40=4,cargas_de_encofrado!$G$46,IF(E39=1.2,IF(E40=5,cargas_de_encofrado!$G$47,IF(E39=1.2,IF(E40=6,cargas_de_encofrado!$G$48,IF(E39=1.2,IF(E40=7,cargas_de_encofrado!$G$49,IF(E39=1.2,IF(E40=8,cargas_de_encofrado!$G$50,IF(E39=1.2,IF(E40=9,cargas_de_encofrado!$G$51,IF(E39=1.2,IF(E40=10,cargas_de_encofrado!$G$52,IF(E39=1.2,IF(E40=10,cargas_de_encofrado!$G$52,IF(E39=1.2,IF(E40=11,cargas_de_encofrado!$G$53,IF(E39=1.2,IF(E40=12,cargas_de_encofrado!$G$54,IF(E39=1.2,IF(E40=13,cargas_de_encofrado!$G$55,IF(E39=1.2,IF(E40=14,cargas_de_encofrado!$G$56,IF(E39=1.2,IF(E40=15,cargas_de_encofrado!$G$57,IF(E39=1.2,IF(E40=16,cargas_de_encofrado!$G$58)))))))))))))))))))))))))))) -> FALSE
B241: QSC_EUROCÓDIGO | C241: =MAX(C236:C239) -> 422.25
B243: =C234 -> Qsc_flex | C243: > | D243: QSC_EUROCÓDIGO? | E243: =IF(D234>C241,F231,IF(D234<C241,F232)) -> SI | G243: SI
G244: NO
B246: =IF(E243=F232,G243,IF(E243=F231,G244)) -> NO
B248: Elección del mallazo antifisuración por el cliente
B251: Mallazo seleccionado | C251: =HOJA_RESULTADOS!J17 -> 200 x 200 x 8
B254: CÁLCULO DE FUEGO
B256: CRITERIO DE AISLAMIENTO
B258: h2/H | C258: =C24/(E40*10) -> 0.75
B259: heff | C259: =E40*10*(1+0.75*((C21+C22)/(C21+C23))) -> 131
B260: heff | C260: =(E40*10)+0.5*C24*((C21+C22)/(C21+C23)) -> 105.5
B262: heff | C262: =IF(C258>1.5,C259,IF(C258<1.5,C260,IF(C258=1.5,C260,"ERROR"))) -> 105.5 | E262: Resistencia al fuego normalizado | F262: Grosor eficaz mínimo
B263: heff_min | C263: =IF(E47=E263,G263,IF(E47=E264,G264,IF(E47=E265,G265,IF(E47=E266,G266,IF(E47=E267,G267,IF(E47=E268,G268,"ERROR")))))) -> 60 | E263: R30 | F263: heff=60-h3 | G263: =60-E48 -> 60
E264: R60 | F264: heff=80-h3 | G264: =80-E48 -> 80
E265: R90 | F265: heff=100-h3 | G265: =100-E48 -> 100
E266: R120 | F266: heff=120-h3 | G266: =120-E48 -> 120
E267: R180 | F267: heff=150-h3 | G267: =150-E48 -> 150
E268: R240 | F268: heff=175-h3 | G268: =175-E48 -> 175
B270: ¿heff_min | C270: < | D270: heff? | F270: SI
F271: NO
B272: =IF(C263<C262,F270,IF(C263>C262,F271,"ERROR")) -> SI | F272: NO
B274: =IF(G40=E40,F271,IF(B272=F271,F272,IF(B272=F270,F270))) -> SI
B277: CRITERIO DE RESISTENCIA
B280: Q | C280: =E41/100 -> 10
B281: G | C281: =IF(E40=H283,I283,IF(E40=H284,I284,IF(E40=H285,I285,IF(E40=H286,I286,IF(E40=H287,I287,IF(E40=H288,I288,IF(E40=H289,I289,IF(E40=H290,I290,IF(E40=H291,I291,IF(E40=H292,I292,IF(E40=H293,I293,IF(E40=H294,I294,IF(E40=H295,I295,"ERROR"))))))))))))) -> 2.65
H282: Espesor de losa (cm) | I282: Peso losa(KN/m2)
B283: Mpv | C283: =(C25*(C280+C281)*E38^2)/8 -> 2.6343625 | H283: 4 | I283: 1.65
H284: 5 | I284: 1.89
H285: 6 | I285: 2.15
H286: 7 | I286: 2.39
B287: z | C287: =1/((1/(C26)^(1/2)+(1/(C27)^(1/2)+(1/(C28)^(1/2))))) -> 2.267796899 | H287: 8 | I287: 2.65
H288: 9 | I288: 2.89
B289: θs | C289: =IF(E47=G297,F297,IF(E47=G298,F298,IF(E47=G299,F299,IF(E47=G300,F300,IF(E47=G301,F301,"ERROR"))))) -> ERROR | H289: 10 | I289: 3.15
H290: 11 | I290: 3.39
... 28 more rows

Sheet mallazo_antifisurac_sin_puntal (hidden)
B5: ELECCIÓN MALLAZO ANTIFISURACIÓN SIN PUNTAL
C7: H=4 | D7: Solución 1.4 | E7: Solución 2.4 | F7: Solución 3.4 | G7: Solución 4.4 | H7: Solución 5.4 | I7: Solución 6.4 | J7: Solución 7.4 | K7: Solución 8.4 | L7: Solución 9.4
D8: 150 x 150 x 5 | E8: 200 x 200 x 6 | F8: 150 x 150 x 6 | G8: 200 x 200 x 8 | H8: 150 x 150 x 8 | I8: 200 x 200 x 10 | J8: 150 x 150 x 10 | K8: 200 x 200 x 12 | L8: 150 x 150 x 12
C10: H=5 | D10: Solución 1.5 | E10: Solución 2.5 | F10: Solución 3.5 | G10: Solución 4.5 | H10: Solución 5.5 | I10: Solución 6.5 | J10: Solución 7.5
D11: 150 x 150 x 6 | E11: 200 x 200 x 8 | F11: 150 x 150 x 8 | G11: 200 x 200 x 10 | H11: 150 x 150 x 10 | I11: 200 x 200 x 12 | J11: 150 x 150 x 12
C13: H=6 | D13: Solución 1.6 | E13: Solución 2.6 | F13: Solución 3.6 | G13: Solución 4.6 | H13: Solución 5.6 | I13: Solución 6.6 | J13: Solución 7.6
D14: 150 x 150 x 6 | E14: 200 x 200 x 8 | F14: 150 x 150 x 8 | G14: 200 x 200 x 10 | H14: 150 x 150 x 10 | I14: 200 x 200 x 12 | J14: 150 x 150 x 12
C16: H=7 | D16: Solución 1.7 | E16: Solución 2.7 | F16: Solución 3.7 | G16: Solución 4.7 | H16: Solución 5.7 | I16: Solución 6.7
D17: 200 x 200 x 8 | E17: 150 x 150 x 8 | F17: 200 x 200 x 10 | G17: 150 x 150 x 10 | H17: 200 x 200 x 12 | I17: 150 x 150 x 12
C19: H=8 | D19: Solución 1.8 | E19: Solución 2.8 | F19: Solución 3.8 | G19: Solución 4.8 | H19: Solución 5.8 | I19: Solución 6.8
D20: 200 x 200 x 8 | E20: 150 x 150 x 8 | F20: 200 x 200 x 10 | G20: 150 x 150 x 10 | H20: 200 x 200 x 12 | I20: 150 x 150 x 12
C22: H=9 | D22: Solución 1.9 | E22: Solución 2.9 | F22: Solución 3.9 | G22: Solución 4.9 | H22: Solución 5.9 | I22: Solución 6.9
D23: 200 x 200 x 8 | E23: 150 x 150 x 8 | F23: 200 x 200 x 10 | G23: 150 x 150 x 10 | H23: 200 x 200 x 12 | I23: 150 x 150 x 12
C25: H=10 | D25: Solución 1.10 | E25: Solución 2.10 | F25: Solución 3.10 | G25: Solución 4.10 | H25: Solución 5.10 | I25: Solución 6.10
D26: 200 x 200 x 8 | E26: 150 x 150 x 8 | F26: 200 x 200 x 10 | G26: 150 x 150 x 10 | H26: 200 x 200 x 12 | I26: 150 x 150 x 12
C28: H=11 | D28: Solución 1.11 | E28: Solución 2.11 | F28: Solución 3.11 | G28: Solución 4.11 | H28: Solución 5.11
D29: 150 x 150 x 8 | E29: 200 x 200 x 10 | F29: 150 x 150 x 10 | G29: 200 x 200 x 12 | H29: 150 x 150 x 12
C31: H=12 | D31: Solución 1.12 | E31: Solución 2.12 | F31: Solución 3.12 | G31: Solución 4.12 | H31: Solución 5.12
D32: 150 x 150 x 8 | E32: 200 x 200 x 10 | F32: 150 x 150 x 10 | G32: 200 x 200 x 12 | H32: 150 x 150 x 12
C34: H=13 | D34: Solución 1.13 | E34: Solución 2.13 | F34: Solución 3.13 | G34: Solución 4.13 | H34: Solución 5.13
D35: 150 x 150 x 8 | E35: 200 x 200 x 10 | F35: 150 x 150 x 10 | G35: 200 x 200 x 12 | H35: 150 x 150 x 12
C37: H=14 | D37: Solución 1.14 | E37: Solución 2.14 | F37: Solución 3.14 | G37: Solución 4.14 | H37: Solución 5.14
D38: 150 x 150 x 8 | E38: 200 x 200 x 10 | F38: 150 x 150 x 10 | G38: 200 x 200 x 12 | H38: 150 x 150 x 12
C40: H=15 | D40: Solución 1.15 | E40: Solución 2.15 | F40: Solución 3.15 | G40: Solución 4.15
D41: 200 x 200 x 10 | E41: 150 x 150 x 10 | F41: 200 x 200 x 12 | G41: 150 x 150 x 12
C43: H=16 | D43: Solución 1.16 | E43: Solución 2.16 | F43: Solución 3.16 | G43: Solución 4.16
D44: 200 x 200 x 10 | E44: 150 x 150 x 10 | F44: 200 x 200 x 12 | G44: 150 x 150 x 12

Sheet mallazo_antifisurac_con_puntal (hidden)
C9: ELECCIÓN MALLAZO ANTIFISURACIÓN CON PUNTAL
E12: H=4
F13: Solución 1.4 | G13: Solución 2.4 | H13: Solución 3.4 | I13: Solución 4.4 | J13: Solución 5.4
F14: 150 x 150 x 8 | G14: 200 x 200 x 10 | H14: 150 x 150 x 10 | I14: 200 x 200 x 12 | J14: 150 x 150 x 12
E16: H=5
F17: Solución 1.5 | G17: Solución 2.5 | H17: Solución 3.5 | I17: Solución 4.5 | J17: Solución 5.5
F18: 150 x 150 x 8 | G18: 200 x 200 x 10 | H18: 150 x 150 x 10 | I18: 200 x 200 x 12 | J18: 150 x 150 x 12
E20: H=6
F21: Solución 1.6 | G21: Solución 2.6 | H21: Solución 3.6 | I21: Solución 4.6
F22: 200 x 200 x 10 | G22: 150 x 150 x 10 | H22: 200 x 200 x 12 | I22: 150 x 150 x 12
E24: H=7
F25: Solución 1.7 | G25: Solución 2.7 | H25: Solución 3.7 | I25: Solución 4.7
F26: 200 x 200 x 10 | G26: 150 x 150 x 10 | H26: 200 x 200 x 12 | I26: 150 x 150 x 12
E28: H=8
F29: Solución 1.8 | G29: Solución 2.8 | H29: Solución 3.8
F30: 150 x 150 x 10 | G30: 200 x 200 x 12 | H30: 150 x 150 x 12
E32: H=9
F33: Solución 1.9 | G33: Solución 2.9 | H33: Solución 3.9
F34: 150 x 150 x 10 | G34: 200 x 200 x 12 | H34: 150 x 150 x 12
E36: H=10
F37: Solución 1.10 | G37: Solución 2.10 | H37: Solución 3.10
F38: 150 x 150 x 10 | G38: 200 x 200 x 12 | H38: 150 x 150 x 12
E40: H=11
F41: Solución 1.11 | G41: Solución 2.11
F42: 200 x 200 x 12 | G42: 150 x 150 x 12
E44: H=12
F45: Solución 1.12
F46: 150 x 150 x 12
E48: H=13
F49: Solución 1.13
F50: 150 x 150 x 12
E52: H=14
F53: Solución 1.14
F54: 150 x 150 x 12
E56: H=15
F57: Solución 1.15
F58: 150 x 150 x 12
E60: H=16
F61: Solución 1.16
F62: 150 x 150 x 12

Sheet cargas_de_encofrado (hidden)
B6: Espesor de chapa (mm) | C6: Altura losa hormigón (cm) | D6: Peso chapa (kg/m2) | E6: Peso hormigón (kg/m2) | F6: Carga de ejecución (kg/m2) | G6: Carga total (kg/m2) | H6: Cargas en fase de encofrado según Eurocódigo 4
B7: 0.7 | C7: 40 | D7: 7.21 | E7: 164 | F7: 150 | G7: 321.21
C8: 50 | E8: 189 | G8: 346.21
C9: 60 | E9: 214 | G9: 371.21
C10: 70 | E10: 239 | G10: 396.21
C11: 80 | E11: 264 | G11: 421.21
C12: 90 | E12: 289 | G12: 446.21
C13: 100 | E13: 314 | G13: 471.21
C14: 110 | E14: 339 | G14: 496.21
C15: 120 | E15: 364 | G15: 521.21
C16: 130 | E16: 390 | G16: 547.21
C17: 140 | E17: 415 | G17: 572.21
C18: 150 | E18: 440 | G18: 597.21
C19: 160 | E19: 465 | G19: 622.21
B20: 0.8 | C20: 40 | D20: 8.25 | E20: 164 | G20: 322.25
C21: 50 | E21: 189 | G21: 347.25
C22: 60 | E22: 214 | G22: 364
C23: 70 | E23: 239 | G23: 397.25
C24: 80 | E24: 264 | G24: 422.25
C25: 90 | E25: 289 | G25: 447.25
C26: 100 | E26: 314 | G26: 472.25
C27: 110 | E27: 339 | G27: 497.25
C28: 120 | E28: 364 | G28: 522.25
C29: 130 | E29: 390 | G29: 548.25
C30: 140 | E30: 415 | G30: 573.25
C31: 150 | E31: 440 | G31: 598.25
C32: 160 | E32: 465 | G32: 623.25
B33: 1 | C33: 40 | D33: 10.31 | E33: 164 | G33: 324.31
C34: 50 | E34: 189 | G34: 349.31
C35: 60 | E35: 214 | G35: 374.31
C36: 70 | E36: 239 | G36: 399.31
C37: 80 | E37: 264 | G37: 424.31
C38: 90 | E38: 289 | G38: 449.31
C39: 100 | E39: 314 | G39: 474.31
C40: 110 | E40: 339 | G40: 499.31
C41: 120 | E41: 364 | G41: 524.31
C42: 130 | E42: 390 | G42: 550.31
C43: 140 | E43: 415 | G43: 575.31
C44: 150 | E44: 440 | G44: 600.31
C45: 160 | E45: 465 | G45: 625.31
B46: 1.2 | C46: 40 | D46: 12.36 | E46: 164 | G46: 326.36
C47: 50 | E47: 189 | G47: 351.36
C48: 60 | E48: 214 | G48: 376.36
C49: 70 | E49: 239 | G49: 401.36
C50: 80 | E50: 264 | G50: 426.36
C51: 90 | E51: 289 | G51: 451.36
C52: 100 | E52: 314 | G52: 476.36
C53: 110 | E53: 339 | G53: 501.36
C54: 120 | E54: 364 | G54: 526.36
C55: 130 | E55: 390 | G55: 552.36
C56: 140 | E56: 415 | G56: 577.36
C57: 150 | E57: 440 | G57: 602.36
C58: 160 | E58: 465 | G58: 627.36

Sheet heficaz_mínimo (hidden)
D9: Resistencia al fuego normalizado | E9: Grosor eficaz mínimo
D10: R30 | E10: heff=60-h3
D11: R60 | E11: heff=80-h3
D12: R90 | E12: heff=100-h3
D13: R120 | E13: heff=120-h3
D14: R180 | E14: heff=150-h3
D15: R240 | E15: heff=175-h3

Sheet 2_vanos_sin_armadura_adicional (hidden)
B3: Datos fijos
B5: msc | C5: 101.36 | D5: N/mm2
B6: ksc | C6: 0.045 | D6: N/mm2
B7: γvs | C7: 1.25
B8: tpp | C8: 60 | D8: días
B9: bo | C9: 6 | D9: cm
B10: b | C10: 22 | D10: cm
B11: b1 | C11: 13 | D11: cm
B12: Es | C12: =2.1*10^6 -> 2100000 | D12: kg/cm2
B13: Ac_v | C13: =C140 -> 0.552920307 | D13: cm2
B14: fmv | C14: 0.0714
B15: ffv | C15: 0.00633
B16: te | C16: 7 | D16: días
B17: tinf | C17: 10000 | D17: días
B18: d | C18: =C133-2 -> 12
B19: ρ2 | C19: 0
B20: fr | C20: 0.091
B21: Tpp | C21: 7 | D21: días
B22: l1 | C22: 127
B23: l2 | C23: 60
B24: l3 | C24: 93
B25: h2 | C25: 60
B26: k | C26: 0.85
B27: u1 | C27: 50 | D27: mm
B28: u2 | C28: 50 | D28: mm
B29: u3 | C29: 40 | D29: mm
B30: γs | C30: ='PROGRAMA HLM-60_200'!F12 -> 1.15
B31: d´ | C31: 2 | D31: cm
B32: γc | C32: ='PROGRAMA HLM-60_200'!F13 -> 1.5
B35: Entrada de datos variables
B37: Nombre variable | D37: Unidades | E37: Valor | F37: Abreviatura
B38: Luz de cálculo | D38: m | E38: ='PROGRAMA HLM-60_200'!K13 -> 1.4 | F38: L
B39: Espesor de la placa nervada | D39: mm | E39: ='PROGRAMA HLM-60_200'!K15 -> 0.8 | F39: ec
B40: Altura de la losa de hormigón | D40: cm | E40: ='PROGRAMA HLM-60_200'!K16 -> 8 | F40: H | G40: 4
B41: Sobrecarga útil (suma de uso más cargas muertas, más tabiquería…) | D41: daN/m2 | E41: ='PROGRAMA HLM-60_200'!F7 -> 1000 | F41: Quso | G41: Recordar que no es la de uso exactamente, sino la suma de la de uso mas tabiquería más cargas muertas…
B42: Tipo de cemento (1, 2 ó 3) | E42: ='PROGRAMA HLM-60_200'!F17 -> 2 | G42: Tipo 2: Endurecimiento normal
B43: Resistencia característica del hormigón | D43: kg/cm2 | E43: ='PROGRAMA HLM-60_200'!F15*10 -> 250 | F43: fck
B44: HUMEDAD RELATIVA( 50% Ó 80%) | E44: ='PROGRAMA HLM-60_200'!F18 -> 50
B46: Calidad de la placa de acero | D46: kg/cm2 | E46: =IF(HOJA_RESULTADOS!$F$17=HOJA_RESULTADOS!$A$26,2500,IF(HOJA_RESULTADOS!$F$17=HOJA_RESULTADOS!$A$27,3200,IF(HOJA_RESULTADOS!$F$17=HOJA_RESULTADOS!$A$28,3500,IF(HOJA_RESULTADOS!$F$17=HOJA_RESULTADOS!A29,2800)))) -> 2500 | F46: σ
B47: Resistencia al fuego requerida | E47: ='PROGRAMA HLM-60_200'!R8 -> R30 | F47: RF | G47: R30
B48: Altura del pavimento | D48: mm | E48: ='PROGRAMA HLM-60_200'!R6 -> 0 | F48: h3
B49: Resistencia característica del hormigón a 20ºC | E49: =E43/10 -> 25 | F49: fc_20ºC
B50: Resistencia del acero a 20ºC | E50: ='PROGRAMA HLM-60_200'!F16 -> 500 | F50: fsy_20ºC
B54: CRITERIO DE FLEXIÓN
B57: Elección del mallazo de negativos
B61: =IF('PROGRAMA HLM-60_200'!R14="NO",'PROGRAMA HLM-60_200'!L22,IF('PROGRAMA HLM-60_200'!R14="SI",'PROGRAMA HLM-60_200'!L23)) -> 200 x 200 x 8
B63: Ø | C63: =IF(B61="150 x 150 x 5",0.5,IF(B61="200 x 200 x 6",0.6,IF(B61="150 x 150 x 6",0.6,IF(B61="200 x 200 x 8",0.8,IF(B61="150 x 150 x 8",0.8,IF(B61="200 x 200 x 10",1,IF(B61="150 x 150 x 10",1,IF(B61="150 x 150 x 12",1.2,IF(B61="200 x 200 x 12",1.2))))))))) -> 0.8
B65: s | C65: =IF(B61="150 x 150 x 5",150,IF(B61="200 x 200 x 6",200,IF(B61="150 x 150 x 6",150,IF(B61="200 x 200 x 8",200,IF(B61="150 x 150 x 8",150,IF(B61="200 x 200 x 10",200,IF(B61="150 x 150 x 10",150,IF(B61="200 x 200 x 12",200,IF(B61="150 x 150 x 12",150))))))))) -> 200
B67: At | C67: =(PI()*(C63^2)*1000*22)/(4*C65*100) -> 0.552920307
B69: fyd | C69: =(E50*10/C30) -> 4347.826087
B71: Us1 | C71: =C67*C69 -> 2404.001335
B73: Us2 | C73: 0
B75: fcd | C75: =E43/C32 -> 166.6666667
B77: h | C77: =E40+6 -> 14
B79: d | C79: =C77-2 -> 12
B81: Uo | C81: =0.85*C75*C9*C79 -> 10200
B83: Uv | C83: =2*C81*(C31/C79) -> 3400
B85: α | C85: =(C71+0.6*C73)/C81 -> 0.2356864054
B87: Mu1 | C87: =(((0.24*C83*C31*(C83-C71+C73)*((1.5*C71)+C73))/(0.6*C83+C73)^2)+(C71*(C79-C31)))*(1/100) -> 254.4847342
B89: MU2 | C89: =((C71-C73)*(1-((C71-C73)/(2*C81)))*C79+(C73*(C79-C31)))*(1/100) -> 254.4847342
B91: Mu3 | C91: =(((4/3)*C71)*((C85+1.2)/(C85+((C85^2)+1.92*(C71/C81))^(1/2))-0.5)*C79+(C73*(C79-C31)))*(1/100) -> 389.9022811
B94: Us1-Us2 | C94: =C71-C73 -> 2404.001335
B96: 0,5*Uo | C96: =0.5*C81 -> 5100
B99: Mu | C99: =IF(C94<C83,C87,IF(E99=TRUE,C89,IF(C96<C94,C91))) -> 254.4847342 | E99: =AND(C83<C94,C94<C96) -> FALSE
B101: Qpp | C101: =IF(E40=4,E104,IF(E40=5,E105,IF(E40=6,E106,IF(E40=7,E107,IF(E40=8,E108,IF(E40=9,E109,IF(E40=10,E110,IF(E40=11,E111,IF(E40=12,E112,IF(E40=13,E113,IF(E40=14,E114,IF(E40=15,E115,IF(E40=16,E116))))))))))))) -> 265
B102: Qpp_m | C102: =IF(E40=F104,(E104*22/100),IF(E40=F105,(E105*22/100),IF(E40=F106,(E106*22/100),IF(E40=F107,(E107*22/100),IF(E40=F108,(E108*22/100),IF(E40=F109,(E109*22/100),IF(E40=F110,(E110*22/100),IF(E40=F111,(E111*22/100),IF(E40=F112,(E112*22/100),IF(E40=F113,(E113*22/100),IF(E40=F114,(E114*22/100),IF(E40=F115,(E115*22/100),IF(E40=F116,(E116*22/100)))))))))))))) -> 58.3
E103: Qpp | F103: H
B104: Mpp | C104: =(1/8)*C102*E38^2 -> 14.2835 | E104: 165 | F104: 4
E105: 190 | F105: 5
B106: Msc | C106: =(C99-1.35*C104)/(1.5) -> 156.8013395 | E106: 215 | F106: 6
E107: 240 | F107: 7
B108: Qsc_s | C108: =(100*8*C106)/(22*E38^2) -> 2909.11576 | E108: 265 | F108: 8
B109: Qsc_s | C109: =IF(C108>0,C108,0) -> 2909.11576 | E109: 299 | F109: 9
E110: 315 | F110: 10
E111: 340 | F111: 11
E112: 365 | F112: 12
E113: 390 | F113: 13
E114: 415 | F114: 14
E115: 440 | F115: 15
E116: 465 | F116: 16
B119: CRITERIO DE DEFORMACIÓN
B123: tpp | C123: 60 | E123: s | F123: Tipo cemento
B124: s | C124: =IF(E42=1,E124,IF(E42=2,E125,IF(E42=3,E126))) -> 0.25 | E124: 0.2 | F124: 1
B125: β | C125: =EXP(C124*(1-(28/C123)^(1/2))) -> 1.082439713 | E125: 0.25 | F125: 2
E126: 0.38 | F126: 3
B128: fc_flex | C128: =0.8*(E43)^(2/3) -> 31.74802104
B130: fc_flex_pp | C130: =C128*C125 -> 34.36531879
B133: h | C133: =E40+6 -> 14
B134: yT | C134: =((C9*((C133-E40)^2)/2)+C10*E40*(C133-(E40/2)))/(C9*(C133-E40)+C10*E40) -> 8.811320755
B135: Ihor | C135: =(1/12)*C9*(C133-E40)^3+C9*(C133-E40)*(C134-((C133-E40)/2))^2+(1/12)*C10*E40^3+C10*E40*(C133-(E40/2)-C134)^2 -> 2511.119497
B136: Ah | C136: =(C10*E40+((C11+C9)/2)*(C133-E40))/100^2 -> 0.0233
B137: Ahor | C137: =C136*100^2 -> 233 | E137: At_v | F137: ec
B138: At_v | C138: =IF(E39=0.7,E138,IF(E39=0.8,E139,IF(E39=1,E140,IF(E39=1.2,E141)))) -> 2.3 | E138: 2.01 | F138: 0.7
B139: Aneg | C139: =(PI()*1000*C63^2)/(4*C65) -> 2.513274123 | E139: 2.3 | F139: 0.8
B140: Ac_v | C140: =C139*22/100 -> 0.552920307 | E140: 2.87 | F140: 1
E141: 3.45 | F141: 1.2
B142: Eci_pp | C142: =19000*(E43*C125)^(1/2) -> 312554.2899
B143: npp | C143: =C12/C142 -> 6.718832753
B144: d´ | C144: =IF(E39=0.7,E145,IF(E39=0.8,E146,IF(E39=1,E147,IF(E39=1.2,E148)))) -> 3.3395 | E144: d´ | F144: ec
E145: 3.3399 | F145: 0.7
B146: yhv_pp | C146: =(C137*C134+C143*C138*C144+C143*C140*(C133-C144))/(C137+C143*C138+C143*C140) -> 8.503240353 | E146: 3.3395 | F146: 0.8 | H146: ='PROGRAMA HLM-60_200'!K23 -> 0
B147: Ihv_pp | C147: =C135+C137*(C146-C134)^2+C143*C138*(C146-C144)^2+C143*C144*(C133-C146-C144)^2 -> 3049.704005 | E147: 3.3378 | F147: 1
E148: 3.3377 | F148: 1.2
B149: Whv_pp | C149: =C147/C146 -> 358.6519819
B153: Mfv | C153: =C130*C149 -> 12325.18969
B156: Mv | C156: =(C14*(C101+C109)*C10*(E38*100)^2)/10000 -> 9772.36603
B158: ξv | C158: =1-0.5*(C153/C156)^2 -> 0.2046509297
B161: FLECHA DE SOBRECARGA
B163: Ecm | C163: =44100*(E76+80)^(1/3) -> 190021.1397
B164: β | C164: =EXP(C124*(1-(28/C17)^(1/2))) -> 1.267151215
B165: Eci_inf | C165: =19000*(E43*C164)^(1/2) -> 338172.1414
B166: ninf | C166: =C12/C165 -> 6.20985511
B167: yhv_inf | C167: =(C137*C134+C166*C138*C144+C166*C140*(C133-C144))/(C137+C166*C138+C166*C140) -> 8.524929498
B168: Ihv_inf | C168: =C135+C137*(C167-C134)^2+C166*C138*(C167-C144)^2+C166*C140*(C133-C167-C144)^2 -> 2929.93147
B169: Ih_inf | C169: =0.85*C168 -> 2490.441749
B171: Fsc_I | C171: =C15*(C109*C10*(E38*100)^4)/(100*100*C169*C165) -> 0.0184792917
B173: δf | C173: =E40/C18 -> 0.6666666667
B174: ξf | C174: =C173*((C10/C9)-1) -> 1.777777778
B175: ρ1 | C175: =C138/(C10*C18) -> 0.008712121212 | G175: SECCIÓN RECTANGULAR
B176: ρ2 | C176: =C140/(C10*C18) -> 0.002094395102 | G176: SECCIÓN T
B177: βf_inf | C177: =C174+C166*(C175+C176)*(C10/C9) -> 2.023836413
B178: αf_inf | C178: =(2*C166*(C175+C176*(C144/C79))*(C10/C9))+(C174*C173) -> 1.608468421
B179: Tf_inf | C179: =(C173^2+2*C166*C176*(C173-(C144/C79)))/(2*(1-C173)) -> 0.6818201544
B181: ninf*ρ1 | C181: =C166*C175 -> 0.05410101042 | D181: =IF(C181<C178,G175,IF(C181>C178,G176)) -> SECCIÓN RECTANGULAR
B183: Xfv_inf_r | C183: =C18*C166*C175*(1+(C176/C175))*(-1+(1+2*((1+(C176*C144)/(C175*C79))/(C166*C175*(1+(C176/C175)^2))))^(1/2)) -> 4.177474661 | D183: Comprobar
B184: Ifv_inf_r | C184: =C166*C138*(C79-C183)*(C79-(C183/3))+C166*C140*(C183-C144)*((C183/3)-C144) -> 1179.538037 | D184: Comprobar
B187: Xfv_inf_T | C187: =C79*C177*(-1+(1+(C178/C177^2))^(1/2)) -> 4.374581384
B188: Ic_inf | C188: =(C10*E40*(((E40^2)/12)+(C187-(E40/2))^2))+(C9*(C187-E40)^3)/3 -> 868.0589
B189: Ifv_inf_T | C189: =C188+C166*C138*(C79-C187)^2+C166*C140*(C187-C144)^2 -> 1702.231941
B191: Ifis_inf | C191: =IF(D181=G175,C184*0.85,IF(D181=G176,C189*0.85)) -> 1002.607331
B194: Fsc_II | C194: =C15*(C109/100)*(C10/100)*((E38*100)^4)/(C165*C191) -> 0.04590191804
B197: Flecha_SC | C197: =C158*C194+(1-C158)*C171 -> 0.02409135767
B200: FLECHA DEBIDA A RETRACCIÓN
B203: Sh | C203: =C138*(C205-C144) -> 8.99246498
B205: yhv_te | C205: =(C137*C134+C207*C138*C144+C207*C140*(C133-C144))/(C137+C207*C138+C207*C140) -> 7.249267383
B207: nte | C207: =C12/C209 -> 51.21612447
B209: Eeff | C209: =C163/(1+C213) -> 41002.71197
B211: Phor | C211: =C10+2*E40+4.6*2+6.9*2+C9 -> 67
B212: em | C212: =(2*C137*100)/(C211*10) -> 69.55223881 | E212: Ø50 | F212: =10.345*C212^(-0.1601)*C16^((-5.238*(10^(-8))*C212^2)+(3.158*(10^-5)*C212)-0.1905) -> 3.6343554
B213: Ø | C213: =IF(E44=50,F212,IF(E44=80,F214)) -> 3.6343554
E214: Ø80 | F214: =5.5952*C212^(-0.1058)*C16^(0.007289*LN(C212)-0.23155) -> 2.41739438
B215: βf_te | C215: =C174+C207*(C175+C176)*(C10/C9) -> 3.807160021
B216: αf_te | C216: =2*C207*(C175+C176*(C144/C79))*(C10/C9)+(C174*C173) -> 4.676237152
B218: Tf_te | C218: =(C173^2+(2*C207*C176*(C173-(C144/C79))))/(2*(1-C173)) -> 0.7916458973
B220: nte*ρ1 | C220: =C207*C175 -> 0.4462010844 | D220: =IF(C220<C218,G175,IF(C220>C218,G176)) -> SECCIÓN RECTANGULAR
B222: Xfv_te_r | C222: =C79*C207*C175*(1+(C176/C175)*(-1+(1+2*((1+((C176*C144)/(C175*C79))))/(C207*C175*(1+(C176/C175))^2))^(1/2))) -> 6.676180808
B223: Ifv_te_r | C223: =C207*C138*(C79-C222)*(C79-(C222/3))+C207*C140*C222*((C222/3)-C144) -> 5919.320875
B225: Xfv_te_T | C225: =C79*C215*(-1+(1+(C216/C215^2))^(1/2)) -> 6.855315546
B226: Ic_te | C226: =C10*E40*(((E40^2)/12)+(C225-(E40/2))^2)+(C9*(C225-E40)^3)/3 -> 2370.564429
B227: Ifv_te_T | C227: =C226+C207*C138*(C79-C225)^2+C207*C140*(C225-C144)^2 -> 5838.434589
B229: Xfv_te | C229: =IF(D220=G175,C222,IF(D220=G176,C225)) -> 6.676180808
B230: Ifv_te | C230: =IF(D220=G175,C223,IF(D220=G176,C227)) -> 5919.320875
B232: Ifis_te | C232: =0.85*C230 -> 5031.422743
B233: Sfis | C233: =C138*(C133-C229-C144) -> 9.163934142
B235: εr_50 | C235: =IF(C212<150,0.6/1000,IF(C212>150,(-0.00022*C177+0.63333)/1000)) -> 0.0006
B236: εr_80 | C236: =IF(C212<150,0.33/1000,IF(C212>150,(-0.00011*C212+0.34667)/1000)) -> 0.00033
B238: εr_50 | C238: =C235*(C16-C21)/C16 -> 0
B239: εr_80 | C239: =C236*(C16-C21)/C16 -> 0
B241: εr | C241: =IF(E44=50,C238,IF(E44=80,C239)) -> 0
B243: Ihv_te | C243: =C135+C137*(C205-C134)^2+C207*C138*(C205-C144)^2+C207*C140*(C133-C205-C144)^2 -> 5209.849056
B244: Ih_te | C244: =0.85*C243 -> 4428.371698
B246: Fret_I | C246: =(C20*(C203*C241*(C12/C209)*E38^2)/(C243)) -> 0
B248: Fret_II | C248: =(C20*C233*C241*(C12/C209)*E38^2)/C243 -> 0
B251: Flecha _ret | C251: =C158*C248+(1-C158)*C246 -> 0
B254: FLECHA DEBIDA A PESO PROPIO
B256: Fpp_I | C256: =(C15*(C101)*C10*(100*E38)^4)/(100*100*C209*C244) -> 0.00780778343
B258: Fpp_II | C258: =(C15*(C101)*C10*(100*E38)^4)/(100*100*C209*C232) -> 0.006871966227
B260: Flecha _PP | C260: =C158*C258+(1-C158)*C256 -> 0.007616267569
B263: FLECHA TOTAL=Flecha_sc + Flecha_ret + Flecha_pp
B265: FLECHA TOTAL | D265: =C260+C251+C197 -> 0.03170762524 | E265: cm
B268: FACTOR RELACIÓN LUZ= | D268: =E38*100/D265 -> 4415.341702
F269: "Solución No Válida"
B270: Q_resultante | C270: =IF(D268>350,C109,IF(D268<350,F269)) -> 2909.11576 | F270: SI | G270: NO
B272: ¿Q_resultante | C272: > | D272: Q"uso"? | E272: =IF(C270=F269,G270,IF(C270=E41,F270,IF(C270>E41,F270,IF(C270<E41,G270)))) -> SI
B275: CÁLCULO DE APUNTALAMIENTOS
B277: I | C277: =IF(E39=F279,G279,IF(E39=F280,G280,IF(E39=F281,G281,IF(E39=F282,G282)))) -> 62.63
B278: W | C278: =IF(E39=F279,H279,IF(E39=F280,H280,IF(E39=F281,H281,IF(E39=F282,H282)))) -> 18.71 | F278: ec | G278: Momento de Inercia I (cm4/m) | H278: Módulo resistente W (cm3/m)
B279: Qsc_flex | C279: =((E46/1.5)*(C278/100)*8)/E38^2 -> 1272.789116 | F279: 0.7 | G279: 54.79 | H279: 16.71
B280: Qsc_def | C280: =((C12*C277)/10000)*192/(180*E38^3) -> 5112.653061 | F280: 0.8 | G280: 62.63 | H280: 18.71
F281: 1 | G281: 78.31 | H281: 23.34
F282: 1.2 | G282: 94.01 | H282: 27.95
B285: ¿Qsc_flex | C285: < | D285: Qsc_def? | E285: =IF(C279<C280,F285,IF(C279>C280,F286)) -> SI | F285: SI
F286: NO
B288: QSC = | C288: =IF(E285=F286,B280,IF(E285=F285,B279)) -> Qsc_flex | D288: =IF(C288=B280,C280,IF(C288=B279,C279)) -> 1272.789116
B290: QSC_EUROCÓDIGO_0,7 | C290: =IF(E39=0.7,IF(E40=4,cargas_de_encofrado!$G$7,IF(E39=0.7,IF(E40=5,cargas_de_encofrado!$G$8,IF(E39=0.7,IF(E40=6,cargas_de_encofrado!$G$9,IF(E39=0.7,IF(E40=7,cargas_de_encofrado!$G$10,IF(E39=0.7,IF(E40=8,cargas_de_encofrado!$G$11,IF(E39=0.7,IF(E40=9,cargas_de_encofrado!$G$12,IF(E39=0.7,IF(E40=10,cargas_de_encofrado!$G$13,IF(E39=0.7,IF(E40=11,cargas_de_encofrado!$G$14,IF(E39=0.7,IF(E40=12,cargas_de_encofrado!$G$15,IF(E39=0.7,IF(E40=13,cargas_de_encofrado!$G$16,IF(E39=0.7,IF(E40=14,cargas_de_encofrado!$G$17,IF(E39=0.7,IF(E40=15,cargas_de_encofrado!$G$18,IF(E39=0.7,IF(E40=16,cargas_de_encofrado!$G$19)))))))))))))))))))))))))) -> FALSE
B291: QSC_EUROCÓDIGO_0,8 | C291: =IF(E39=0.8,IF(E40=4,cargas_de_encofrado!$G$20,IF(E39=0.8,IF(E40=5,cargas_de_encofrado!$G$21,IF(E39=0.8,IF(E40=6,cargas_de_encofrado!$G$22,IF(E39=0.8,IF(E40=7,cargas_de_encofrado!$G$23,IF(E39=0.8,IF(E40=8,cargas_de_encofrado!$G$24,IF(E39=0.8,IF(E40=9,cargas_de_encofrado!$G$25,IF(E39=0.8,IF(E40=10,cargas_de_encofrado!$G$26,IF(E39=0.8,IF(E40=11,cargas_de_encofrado!$G$27,IF(E39=0.8,IF(E40=12,cargas_de_encofrado!$G$28,IF(E39=0.8,IF(E40=13,cargas_de_encofrado!$G$29,IF(E39=0.8,IF(E40=14,cargas_de_encofrado!$G$30,IF(E39=0.8,IF(E40=15,cargas_de_encofrado!$G$31,IF(E39=0.8,IF(E40=16,cargas_de_encofrado!$G$32)))))))))))))))))))))))))) -> 422.25
B292: QSC_EUROCÓDIGO_1,0 | C292: =IF(E39=1,IF(E40=4,cargas_de_encofrado!$G$33,IF(E39=1,IF(E40=5,cargas_de_encofrado!$G$34,IF(E39=1,IF(E40=6,cargas_de_encofrado!$G$35,IF(E39=1,IF(E40=7,cargas_de_encofrado!$G$36,IF(E39=1,IF(E40=8,cargas_de_encofrado!$G$37,IF(E39=1,IF(E40=9,cargas_de_encofrado!$G$38,IF(E39=1,IF(E40=10,cargas_de_encofrado!$G$39,IF(E39=1,IF(E40=11,cargas_de_encofrado!$G$40,IF(E39=1,IF(E40=12,cargas_de_encofrado!$G$41,IF(E39=1,IF(E40=13,cargas_de_encofrado!$G$42,IF(E39=1,IF(E40=14,cargas_de_encofrado!$G$43,IF(E39=1,IF(E40=15,cargas_de_encofrado!$G$44,IF(E39=1,IF(E40=16,cargas_de_encofrado!$G$45)))))))))))))))))))))))))) -> FALSE
B293: QSC_EUROCÓDIGO_1,2 | C293: =IF(E39=1.2,IF(E40=4,cargas_de_encofrado!$G$46,IF(E39=1.2,IF(E40=5,cargas_de_encofrado!$G$47,IF(E39=1.2,IF(E40=6,cargas_de_encofrado!$G$48,IF(E39=1.2,IF(E40=7,cargas_de_encofrado!$G$49,IF(E39=1.2,IF(E40=8,cargas_de_encofrado!$G$50,IF(E39=1.2,IF(E40=9,cargas_de_encofrado!$G$51,IF(E39=1.2,IF(E40=10,cargas_de_encofrado!$G$52,IF(E39=1.2,IF(E40=10,cargas_de_encofrado!$G$52,IF(E39=1.2,IF(E40=11,cargas_de_encofrado!$G$53,IF(E39=1.2,IF(E40=12,cargas_de_encofrado!$G$54,IF(E39=1.2,IF(E40=13,cargas_de_encofrado!$G$55,IF(E39=1.2,IF(E40=14,cargas_de_encofrado!$G$56,IF(E39=1.2,IF(E40=15,cargas_de_encofrado!$G$57,IF(E39=1.2,IF(E40=16,cargas_de_encofrado!$G$58)))))))))))))))))))))))))))) -> FALSE
B295: QSC_EUROCÓDIGO | C295: =MAX(C290:C293) -> 422.25
B297: =C288 -> Qsc_flex | C297: > | D297: QSC_EUROCÓDIGO? | E297: =IF(D288>C295,F285,IF(D288<C295,F286)) -> SI | G297: SI
G298: NO
B299: =IF(E297=F286,G297,IF(E297=F285,G298)) -> NO
B302: Elección del mallazo antifisuración por el cliente
B305: Mallazo seleccionado | C305: =HOJA_RESULTADOS!J71 -> 150 x 150 x 10
B309: CÁLCULO DE FUEGO
B311: CRITERIO DE AISLAMIENTO
B313: h2/H | C313: =C25/(E40*10) -> 0.75
B314: heff | C314: =E40*10*(1+0.75*((C22+C23)/(C22+C24))) -> 131
B315: heff | C315: =(E40*10)+0.5*C25*((C22+C23)/(C22+C24)) -> 105.5
B317: heff | C317: =IF(C313>1.5,C314,IF(C313<1.5,C315,IF(C313=1.5,C315,"ERROR"))) -> 105.5 | E317: Resistencia al fuego normalizado | F317: Grosor eficaz mínimo
... 56 more rows

Sheet casos de 2 vanos particulares (hidden)
B4: H | C4: L | D4: e | E4: Mallazo de negativos | F4: Sobrecarga
B5: 4 | C5: 1.4 | D5: 1.2 | E5: 150 x 150 x 5 | F5: 2401
B6: 4 | C6: 1.8 | D6: 1.2 | E6: 150 x 150 x 5 | F6: 1434
B7: 4 | C7: 2 | D7: 1.2 | E7: 150 x 150 x 5 | F7: 1150
B8: 4 | C8: 2.2 | D8: 1.2 | E8: 150 x 150 x 5 | F8: 938
B9: 4 | C9: 2.4 | D9: 1.2 | E9: 150 x 150 x 5 | F9: 776
B10: 4 | C10: 2.6 | D10: 1.2 | E10: 150 x 150 x 5 | F10: 648
B11: 4 | C11: 2.8 | D11: 1.2 | E11: 150 x 150 x 5 | F11: 547
B12: 6 | C12: 2.8 | D12: 1.2 | E12: 150 x 150 x 6 | F12: 712
B13: 6 | C13: 3.2 | D13: 1.2 | E13: 200 x 200 x 10 | F13: 516
B14: 6 | C14: 3.4 | D14: 1.2 | E14: 200 x 200 x 10 | F14: 442
B15: 6 | C15: 3.6 | D15: 1.2 | E15: 200 x 200 x 10 | F15: 380
B16: 8 | C16: 1.6 | D16: 1 | E16: 200 x 200 x 8 | F16: 2459
B17: 8 | C17: 1.6 | D17: 1.2 | E17: 200 x 200 x 8 | F17: 2931
B18: 8 | C18: 1.8 | D18: 1 | E18: 200 x 200 x 8 | F18: 1925
B19: 8 | C19: 1.8 | D19: 1.2 | E19: 200 x 200 x 8 | F19: 2298
B20: 8 | C20: 2 | D20: 1 | E20: 200 x 200 x 8 | F20: 1540
B21: 8 | C21: 2 | D21: 1.2 | E21: 200 x 200 x 8 | F21: 1842
B22: 8 | C22: 2.2 | D22: 1 | E22: 200 x 200 x 8 | F22: 1253
B23: 8 | C23: 2.2 | D23: 1.2 | E23: 200 x 200 x 8 | F23: 1503
B24: 8 | C24: 2.4 | D24: 1 | E24: 200 x 200 x 8 | F24: 1033
B25: 8 | C25: 2.4 | D25: 1.2 | E25: 200 x 200 x 8 | F25: 1243
B26: 8 | C26: 2.6 | D26: 1 | E26: 200 x 200 x 8 | F26: 860
B27: 8 | C27: 2.6 | D27: 1.2 | E27: 200 x 200 x 8 | F27: 1039
B28: 8 | C28: 2.8 | D28: 1.2 | E28: 200 x 200 x 8 | F28: 876
B29: 10 | C29: 1.6 | D29: 1 | E29: 200 x 200 x 8 | F29: 2921
B30: 10 | C30: 1.8 | D30: 1 | E30: 200 x 200 x 8 | F30: 2287
B31: 10 | C31: 1.8 | D31: 1.2 | E31: 200 x 200 x 8 | F31: 2730
B32: 10 | C32: 2 | D32: 1 | E32: 200 x 200 x 8 | F32: 1829
B33: 10 | C33: 2 | D33: 1.2 | E33: 200 x 200 x 8 | F33: 2188
B34: 10 | C34: 2.2 | D34: 1 | E34: 200 x 200 x 8 | F34: 1488
B35: 10 | C35: 2.2 | D35: 1.2 | E35: 200 x 200 x 8 | F35: 1785
B36: 10 | C36: 2.4 | D36: 1 | E36: 200 x 200 x 8 | F36: 1227
B37: 10 | C37: 2.4 | D37: 1.2 | E37: 200 x 200 x 8 | F37: 1476
B38: 10 | C38: 2.6 | D38: 1.2 | E38: 200 x 200 x 8 | F38: 1234
B39: 12 | C39: 1.8 | D39: 1.2 | E39: 150 x 150 x 8 | F39: 3162
B40: 12 | C40: 2 | D40: 1.2 | E40: 150 x 150 x 8 | F40: 2535
B41: 12 | C41: 2.2 | D41: 1.2 | E41: 150 x 150 x 8 | F41: 2067 | K41: P | L41: temp | M41: cota
B42: 12 | C42: 2.4 | D42: 1.2 | E42: 150 x 150 x 8 | F42: 1710 | K42: 835 | L42: 13.6 | M42: 508 | N42: =IF(P>800,IF(temp<15,IF(cota>450,"CORRECTO","COTA BAJA"),"TEMP ALTA"),"POCA PREC") -> CORRECTO
K43: 451 | L43: 16.9 | M43: 601 | N43: =IF(P>800,IF(temp<15,IF(cota>450,"CORRECTO","COTA BAJA"),"TEMP ALTA"),"POCA PREC") -> POCA PREC
K44: 892 | L44: 14.8 | M44: 385 | N44: =IF(P>800,IF(temp<15,IF(cota>450,"CORRECTO","COTA BAJA"),"TEMP ALTA"),"POCA PREC") -> COTA BAJA
K45: 911 | L45: 12.9 | M45: 750 | N45: =IF(P>800,IF(temp<15,IF(cota>450,"CORRECTO","COTA BAJA"),"TEMP ALTA"),"POCA PREC") -> CORRECTO
K46: 902 | L46: 16.1 | M46: 547 | N46: =IF(P>800,IF(temp<15,IF(cota>450,"CORRECTO","COTA BAJA"),"TEMP ALTA"),"POCA PREC") -> TEMP ALTA
